Workbook

Sheet Cover
A1: IFL League Workbook 2013

Sheet Teams
A1: Teams
A2: National Football Conference (NFC)
A4: East | B4: Owner | C4: e-mail | D4: AOL IM | E4: Hometown | F4: Best Time
A5: Arizona Cardinals | B5: Jim Heaton | C5: Wyvern007@aol.com | D5: Wyvern007 | E5: West Palm Beach, Florida | F5: Evenings 6:00 to 9:00 EST; Also available weekends
A6: Dallas Cowboys | B6: Steve Hart | C6: stratkid1122@comcast.net | D6: StratColonel
A7: New York Giants | B7: Jude Plante | C7: HeyyyJude@yahoo.com
A8: Philadelphia Eagles | B8: Greg Mason | C8: gmason73@comcast.net | D8: gm291
A9: Washington Redskins | B9: Kris Heaton | C9: kheaton15@live.com | D9: UCFKris123
A10: Central | B10: Owner | C10: e-mail | D10: AOL IM | E10: Hometown | F10: Best Time
A11: Chicago Bears | B11: Bill Baker | C11: billbaker1797@gmail.com | D11: wilbk
A12: Detroit Lions | B12: Chris Gotay | C12: chrisgotay@yahoo.com | D12: ceegeect | E12: Manchester, Connecticut | F12: Weeknights 7-10 EST Weekends - Anytime
A13: Green Bay Packers | B13: John Conners | C13: connersjr@yahoo.com | D13: john conners | E13: Vancouver, BC, Canada
A14: Minnesota Vikings | B14: Rich Robb | C14: richardtrobb@aol.com | D14: richardtrobb | E14: Memphis, Tennessee
A15: Tampa Bay Bucanneers | B15: Barry King | C15: bking50@rochester.rr.com | D15: barry king | E15: Elba, New York
A16: West | B16: Owner | C16: e-mail | D16: AOL IM | E16: Hometown | F16: Best Time
A17: Atlanta Falcons | B17: GM: Michael Dahan HC: Marty Golden | C17: mdahan99@gmail.com golden.marty@gmail.com | D17: pdpower963
A18: Carolina Panthers | B18: Sean Britt | C18: snbritt@gmail.com | D18: Bravesunited
A19: New Orleans Saints | B19: Jim Rice | C19: ricejim01@aol.com | D19: jimbo0121712000
A20: San Francisco 49ers | B20: Charles Pester | C20: cpester@telus.net | D20: Charles Pester
A21: St. Louis Rams | B21: Ryan Heaton | C21: Heaton13@yahoo.com | D21: rjheaton
A22: American Football Conference (AFC)
A24: East | B24: Owner | C24: e-mail | D24: AOL IM | E24: Hometown | F24: Best Time
A25: Buffalo Bills | B25: John Deason | C25: inbudget@yahoo.com | D25: inbudget2004 | F25: Monday afternoons and evenings after 6:00 p.m. PCT
A26: Indianapolis Colts | B26: Ken Griffith | C26: kgrffth@aol.com | D26: kgrffth
A27: Miami Dolphins | B27: Brian Macri | C27: pipestaver@aol.com | D27: pipestaver | E27: Mt. Sinai, New York
A28: New England Patriots | B28: Kevin Kolb | C28: kkolb3569@aol.com | D28: kkolb3569 | E28: Schaumburg, Illinois | F28: Evenings after 8:30 CST
A29: New York Jets | B29: Bob Durfee | C29: bobdurf@cs.com | D29: bobdurf | E29: Williamsville, New York
A30: Central | B30: Owner | C30: e-mail | D30: AOL IM | E30: Hometown | F30: Best Time
A31: Baltimore Ravens | B31: Scott Master | C31: souki@aol.com | D31: souki | E31: Baltimore, Maryland
A32: Cincinnati Bengals | B32: John Storer | C32: jstorer715@yahoo.com | D32: jcstorer | E32: Loveland, Ohio | F32: Evenings after 9:00 EST
A33: Jacksonville Jaguars | B33: Dave Hood | C33: dhoodvan@yahoo.com | E33: Vancouver, BC, Canada
A34: Pittsburgh Steelers | B34: Vince Diiorio | C34: diioriovincenzo@sympatico.ca | D34: SLUGGERSPOWER
A35: Tennessee Titans | B35: Rick Brunskill | C35: rickbrunskill@gmail.com | D35: BCLANGLEYCA | E35: Langley, BC
A36: West | B36: Owner | C36: e-mail | D36: AOL IM | E36: Hometown | F36: Best Time
A37: Denver Broncos | B37: Doug Crandall | C37: crandall@pld.com | D37: crandalldoug | E37: Deerfield, Kansas
A38: Houston Texans | B38: Pete Katsafanas | C38: pete1028@bellatlantic.net | D38: OFLKAT | E38: Kutztown, PA
A39: Kansas City Chiefs | B39: Bob Sarcewicz | C39: rsarce@comcast.net | D39: rsarce17
A40: Oakland Raiders | B40: Kurt Johnson | C40: GOVIKINGS3@aol.com | D40: GOVIKINGS3 | E40: Ruralhall, NC | F40: Monday through Thursday; Work weekends.
A41: San Diego Chargers | B41: Jerry Banko | C41: jabanko@roadrunner.com | D41: JerryBErie | E41: Erie, PA | F41: Anytime except late evenings.

Sheet Calendar
B1: Calendar
A3: Pre-Season | B3: =+IF(C3<=TODAY(),"X","") -> X | C3: 2013-04-10 | D3: IFL 2011 Pre-season Opens (trade freeze lifted)
B4: X | C4: 2013-04-10 | D4: First File Distributed
C5: 2013-05-22 | D5: Pre-Draft Roster cuts due
B6: X | C6: 2013-05-29 | D6: Pre-Draft File Distributed
B7: X | C7: 2013-06-22 | D7: Draft Officially Begins
B8: X | C8: 2013-07-14 | D8: Draft Completes
B9: X | C9: 2013-07-17 | D9: Post Draft File Distributed
A11: Week #1 | B11: =+IF(C11<=TODAY(),"X","") -> X | C11: 2013-08-25 | D11: Week 1 begins; No Transactions
B12: =+IF(C12<=TODAY(),"X","") -> X | C12: =+C11+2 -> 2013-08-27 | D12: Files Posted
B13: =+IF(C13<=TODAY(),"X","") -> X | C13: =+C11+8 -> 2013-09-02 | D13: Game Results Due
A15: Week #2 | B15: =+IF(C15<=TODAY(),"X","") -> X | C15: =+C11+8 -> 2013-09-02 | D15: Transactions due
B16: =+IF(C16<=TODAY(),"X","") -> X | C16: =+C15+2 -> 2013-09-04 | D16: Files Posted
B17: =+IF(C17<=TODAY(),"X","") -> X | C17: =+C15+7 -> 2013-09-09 | D17: Game Results Due
A19: Week #3 | B19: =+IF(C19<=TODAY(),"X","") -> X | C19: =+C15+7 -> 2013-09-09 | D19: Transactions due
B20: =+IF(C20<=TODAY(),"X","") -> X | C20: =+C19+2 -> 2013-09-11 | D20: Files Posted
B21: =+IF(C21<=TODAY(),"X","") -> X | C21: =+C19+8 -> 2013-09-17 | D21: Game Results Due
A23: Week #4 | B23: =+IF(C23<=TODAY(),"X","") -> X | C23: =+C19+7 -> 2013-09-16 | D23: Transactions due
B24: =+IF(C24<=TODAY(),"X","") -> X | C24: =+C23+2 -> 2013-09-18 | D24: Files Posted
B25: =+IF(C25<=TODAY(),"X","") -> X | C25: =+C23+8 -> 2013-09-24 | D25: Game Results Due
A27: Week #5 | B27: =+IF(C27<=TODAY(),"X","") -> X | C27: =+C23+7 -> 2013-09-23 | D27: Transactions due
B28: =+IF(C28<=TODAY(),"X","") -> X | C28: =+C27+2 -> 2013-09-25 | D28: Files Posted
B29: =+IF(C29<=TODAY(),"X","") -> X | C29: =+C27+8 -> 2013-10-01 | D29: Game Results Due
A31: Week #6 | B31: =+IF(C31<=TODAY(),"X","") -> X | C31: =+C27+7 -> 2013-09-30 | D31: Transactions due
B32: =+IF(C32<=TODAY(),"X","") -> X | C32: =+C31+2 -> 2013-10-02 | D32: Files Posted
B33: =+IF(C33<=TODAY(),"X","") -> X | C33: =+C31+8 -> 2013-10-08 | D33: Game Results Due
C34: =+C32+5 -> 2013-10-07 | D34: TRADE DEADLINE - 11:59
A35: Week #7 | B35: =+IF(C35<=TODAY(),"X","") -> X | C35: =+C31+7 -> 2013-10-07 | D35: Transactions due
B36: =+IF(C36<=TODAY(),"X","") -> X | C36: =+C35+2 -> 2013-10-09 | D36: Files Posted
B37: =+IF(C37<=TODAY(),"X","") -> X | C37: =+C35+8 -> 2013-10-15 | D37: Game Results Due
A39: Week #8 | B39: =+IF(C39<=TODAY(),"X","") -> X | C39: =+C35+7 -> 2013-10-14 | D39: Transactions due
B40: =+IF(C40<=TODAY(),"X","") -> X | C40: =+C39+2 -> 2013-10-16 | D40: Files Posted
B41: =+IF(C41<=TODAY(),"X","") -> X | C41: =+C39+8 -> 2013-10-22 | D41: Game Results Due
A43: Week #9 | B43: =+IF(C43<=TODAY(),"X","") -> X | C43: =+C39+7 -> 2013-10-21 | D43: Transactions due
B44: =+IF(C44<=TODAY(),"X","") -> X | C44: =+C43+2 -> 2013-10-23 | D44: Files Posted
B45: =+IF(C45<=TODAY(),"X","") ->  | C45: =+C43+8 -> 2013-10-29 | D45: Game Results Due
A47: Week #10 | B47: =+IF(C47<=TODAY(),"X","") ->  | C47: =+C43+7 -> 2013-10-28 | D47: Transactions due
B48: =+IF(C48<=TODAY(),"X","") ->  | C48: =+C47+2 -> 2013-10-30 | D48: Files Posted
B49: =+IF(C49<=TODAY(),"X","") ->  | C49: =+C47+8 -> 2013-11-05 | D49: Game Results Due
A51: Week #11 | B51: =+IF(C51<=TODAY(),"X","") ->  | C51: =+C47+7 -> 2013-11-04 | D51: Transactions due
B52: =+IF(C52<=TODAY(),"X","") ->  | C52: =+C51+2 -> 2013-11-06 | D52: Files Posted
B53: =+IF(C53<=TODAY(),"X","") ->  | C53: =+C51+8 -> 2013-11-12 | D53: Game Results Due
A55: Week #12 | B55: =+IF(C55<=TODAY(),"X","") ->  | C55: =+C51+7 -> 2013-11-11 | D55: Transactions due
B56: =+IF(C56<=TODAY(),"X","") ->  | C56: =+C55+2 -> 2013-11-13 | D56: Files Posted
B57: =+IF(C57<=TODAY(),"X","") ->  | C57: =+C55+8 -> 2013-11-19 | D57: Game Results Due
A59: Week #13 | B59: =+IF(C59<=TODAY(),"X","") ->  | C59: =+C55+7 -> 2013-11-18 | D59: Transactions due
B60: =+IF(C60<=TODAY(),"X","") ->  | C60: =+C59+2 -> 2013-11-20 | D60: Files Posted
B61: =+IF(C61<=TODAY(),"X","") ->  | C61: =+C59+8 -> 2013-11-26 | D61: Game Results Due
A63: Week #14 | B63: =+IF(C63<=TODAY(),"X","") ->  | C63: =+C59+7 -> 2013-11-25 | D63: Transactions due
B64: =+IF(C64<=TODAY(),"X","") ->  | C64: =+C63+2 -> 2013-11-27 | D64: Files Posted
B65: =+IF(C65<=TODAY(),"X","") ->  | C65: =+C63+8 -> 2013-12-03 | D65: Game Results Due
A67: Week #15 | B67: =+IF(C67<=TODAY(),"X","") ->  | C67: =+C63+7 -> 2013-12-02 | D67: Transactions due
B68: =+IF(C68<=TODAY(),"X","") ->  | C68: =+C67+2 -> 2013-12-04 | D68: Files Posted
B69: =+IF(C69<=TODAY(),"X","") ->  | C69: =+C67+8 -> 2013-12-10 | D69: Game Results Due
A71: Week #16 | B71: =+IF(C71<=TODAY(),"X","") ->  | C71: =+C67+7 -> 2013-12-09 | D71: Transactions due
B72: =+IF(C72<=TODAY(),"X","") ->  | C72: =+C71+2 -> 2013-12-11 | D72: Files Posted
B73: =+IF(C73<=TODAY(),"X","") ->  | C73: =+C71+8 -> 2013-12-17 | D73: Game Results Due
A75: Playoffs | B75: =+IF(C75<=TODAY(),"X","") -> X | C75: 2013-01-02 | D75: Round One of Playoffs Begin
B76: X | C76: =+C75+12 -> 2013-01-14 | D76: Round One of Playoffs Finished
B77: X | C77: 2010-01-20 | D77: Conference Semi Finals Begin
B78: X | C78: =+C77+5 -> 2010-01-25 | D78: Conference Semi Finals Finished
B79: X | C79: =C78+2 -> 2010-01-27 | D79: Conference Finals Begin
B80: X | C80: =+C79+5 -> 2010-02-01 | D80: Conference Finals Finished
B81: X | C81: =+C80+2 -> 2010-02-03 | D81: IFL Super Bowl Week Begins
B82: X | C82: =+C81+5 -> 2010-02-08 | D82: IFL Super Bowl Finished
A84: Post-Season

Sheet Schedule
A1: Game Schedule
A3: Week | B3: Visitor | C3: H2H/Sub | D3: Home | E3: H2H/Sub | F3: Comments
A4: 1 | B4: Cincinnati | C4: H2H | D4: Pittsburgh | E4: H2H
A5: 1 | B5: Baltimore | C5: H2H | D5: Jacksonville | E5: H2H
A6: 1 | B6: Tennessee | C6: H2H | D6: Dallas | E6: H2H
A7: 1 | B7: Kansas City | C7: H2H | D7: Houston | E7: H2H
A8: 1 | B8: Oakland | C8: H2H | D8: Denver | E8: H2H
A9: 1 | B9: San Diego | C9: H2H | D9: Green Bay | E9: H2H
A10: 1 | B10: New England | C10: H2H | D10: Indianapolis | E10: H2H
A11: 1 | B11: Miami | C11: H2H | D11: New York (A) | E11: H2H
A12: 1 | B12: Buffalo | C12: H2H | D12: Carolina | E12: sub IND
A13: 1 | B13: Washington | C13: H2H | D13: Arizona | E13: H2H
A14: 1 | B14: Philadelphia | C14: H2H | D14: New York (N) | E14: H2H
A15: 1 | B15: Detroit | C15: sub IND | D15: Tampa Bay | E15: H2H
A16: 1 | B16: Chicago | C16: H2H | D16: Minnesota | E16: H2H
A17: 1 | B17: Atlanta | C17: sim | D17: San Francisco | E17: sim
A18: 1 | B18: St. Louis | C18: H2H | D18: New Orleans | E18: H2H
A21: Week | B21: Visitor | C21: H2H/Sub | D21: Home | E21: H2H/Sub | F21: Comments
A22: 2 | B22: Pittsburgh | C22: H2H | D22: Dallas | E22: H2H
A23: 2 | B23: Tennessee | C23: H2H | D23: Washington | E23: H2H
A24: 2 | B24: Kansas City | C24: H2H | D24: Indianapolis | E24: H2H
A25: 2 | B25: Houston | C25: H2H | D25: New York (A) | E25: H2H
A26: 2 | B26: Oakland | C26: H2H | D26: New England | E26: H2H
A27: 2 | B27: Denver | C27: H2H | D27: Buffalo | E27: H2H
A28: 2 | B28: San Diego | C28: H2H | D28: Miami | E28: H2H
A29: 2 | B29: New York (N) | C29: H2H | D29: Baltimore | E29: H2H
A30: 2 | B30: Arizona | C30: H2H | D30: Cincinnati | E30: H2H
A31: 2 | B31: Philadelphia | C31: H2H | D31: Jacksonville | E31: H2H
A32: 2 | B32: Tampa Bay | C32: sub CIN | D32: Atlanta | E32: H2H
A33: 2 | B33: New Orleans | C33: H2H | D33: Minnesota | E33: H2H
A34: 2 | B34: San Francisco | C34: H2H | D34: Detroit | E34: H2H
A35: 2 | B35: Carolina | C35: H2H | D35: Green Bay | E35: H2H
A36: 2 | B36: St. Louis | C36: H2H | D36: Chicago | E36: H2H
A39: Week | B39: Visitor | C39: H2H/Sub | D39: Home | E39: H2H/Sub | F39: Comments
A40: 3 | B40: Cincinnati | C40: H2H | D40: Baltimore | E40: sub TEN
A41: 3 | B41: Pittsburgh | C41: H2H | D41: Tennessee | E41: H2H
A42: 3 | B42: Jacksonville | C42: H2H | D42: New York (N) | E42: H2H
A43: 3 | B43: Kansas City | C43: H2H | D43: Oakland | E43: H2H
A44: 3 | B44: Houston | C44: H2H | D44: San Diego | E44: H2H
A45: 3 | B45: Denver | C45: sub GB | D45: Minnesota | E45: H2H
A46: 3 | B46: New England | C46: H2H | D46: Miami | E46: H2H
A47: 3 | B47: Indianapolis | C47: H2H | D47: Buffalo | E47: H2H
A48: 3 | B48: New York (A) | C48: H2H | D48: New Orleans | E48: H2H
A49: 3 | B49: Washington | C49: H2H | D49: Dallas | E49: H2H
A50: 3 | B50: Philadelphia | C50: H2H | D50: Arizona | E50: H2H
A51: 3 | B51: Tampa Bay | C51: H2H | D51: Green Bay | E51: H2H
A52: 3 | B52: Detroit | C52: H2H | D52: Chicago | E52: sub ATL
A53: 3 | B53: Atlanta | C53: H2H | D53: Carolina | E53: H2H
A54: 3 | B54: San Francisco | C54: sub WAS | D54: St. Louis | E54: sub ARI
A57: Week | B57: Visitor | C57: H2H/Sub | D57: Home | E57: H2H/Sub | F57: Comments
A58: 4 | B58: Baltimore | C58: sub ATL | D58: Pittsburgh | E58: H2H
A59: 4 | B59: Jacksonville | C59: H2H | D59: Tennessee | E59: H2H
A60: 4 | B60: Oakland | C60: H2H | D60: Houston | E60: H2H
A61: 4 | B61: Denver | C61: H2H | D61: San Diego | E61: H2H
A62: 4 | B62: Miami | C62: H2H | D62: Indianapolis | E62: H2H
A63: 4 | B63: New York (A) | C63: H2H | D63: Buffalo | E63: H2H
A64: 4 | B64: New York (N) | C64: H2H | D64: Philadelphia | E64: H2H
A65: 4 | B65: Arizona | C65: H2H | D65: Washington | E65: H2H
A66: 4 | B66: Dallas | C66: H2H | D66: Cincinnati | E66: H2H
A67: 4 | B67: Tampa Bay | C67: sub CIN | D67: Detroit | E67: H2H
A68: 4 | B68: Minnesota | C68: H2H | D68: Chicago | E68: H2H
A69: 4 | B69: Green Bay | C69: H2H | D69: Kansas City | E69: H2H
A70: 4 | B70: New Orleans | C70: H2H | D70: St. Louis | E70: sub WAS
A71: 4 | B71: San Francisco | C71: sub IND | D71: Atlanta | E71: H2H
A72: 4 | B72: Carolina | C72: H2H | D72: New England | E72: H2H
A75: Week | B75: Visitor | C75: H2H/Sub | D75: Home | E75: H2H/Sub | F75: Comments
A76: 5 | B76: Cincinnati | C76: H2H | D76: Jacksonville | E76: H2H
A77: 5 | B77: Pittsburgh | C77: H2H | D77: Arizona | E77: H2H
A78: 5 | B78: Tennessee | C78: H2H | D78: Baltimore | E78: sub ATL
A79: 5 | B79: Houston | C79: H2H | D79: Detroit | E79: H2H
A80: 5 | B80: Denver | C80: H2H | D80: Kansas City | E80: H2H
A81: 5 | B81: San Diego | C81: sub MIA | D81: Oakland | E81: H2H
A82: 5 | B82: New England | C82: H2H | D82: New York (A) | E82: H2H
A83: 5 | B83: Indianapolis | C83: H2H | D83: San Francisco | E83: H2H
A84: 5 | B84: Buffalo | C84: sub WAS | D84: Miami | E84: H2H
A85: 5 | B85: Washington | C85: H2H | D85: Philadelphia | E85: H2H
A86: 5 | B86: Dallas | C86: H2H | D86: New York (N) | E86: H2H
A87: 5 | B87: Minnesota | C87: H2H | D87: Green Bay | E87: H2H
A88: 5 | B88: Chicago | C88: H2H | D88: Tampa Bay | E88: H2H
A89: 5 | B89: Carolina | C89: sub SF | D89: New Orleans | E89: H2H
A90: 5 | B90: St. Louis | C90: H2H | D90: Atlanta | E90: H2H
A93: Week | B93: Visitor | C93: H2H/Sub | D93: Home | E93: H2H/Sub | F93: Comments
A94: 6 | B94: Baltimore | C94: sub SF | D94: Philadelphia | E94: H2H
A95: 6 | B95: Jacksonville | C95: H2H | D95: Pittsburgh | E95: H2H
A96: 6 | B96: Tennessee | C96: H2H | D96: Cincinnati | E96: H2H
A97: 6 | B97: Kansas City | C97: H2H | D97: San Diego | E97: H2H
A98: 6 | B98: Houston | C98: H2H | D98: Denver | E98: H2H
A99: 6 | B99: Oakland | C99: H2H | D99: Chicago | E99: sub CIN
A100: 6 | B100: Miami | C100: H2H | D100: St. Louis | E100: H2H
A101: 6 | B101: New York (A) | C101: H2H | D101: Indianapolis | E101: H2H
A102: 6 | B102: Buffalo | C102: H2H | D102: New England | E102: H2H
A103: 6 | B103: New York (N) | C103: H2H | D103: Washington | E103: H2H
A104: 6 | B104: Arizona | C104: H2H | D104: Dallas | E104: H2H
A105: 6 | B105: Tampa Bay | C105: sub CIN | D105: Minnesota | E105: H2H
A106: 6 | B106: Green Bay | C106: H2H | D106: Detroit | E106: H2H
A107: 6 | B107: Atlanta | C107: H2H | D107: New Orleans | E107: H2H
A108: 6 | B108: San Francisco | C108: H2H | D108: Carolina | E108: H2H
A111: Week | B111: Visitor | C111: H2H/Sub | D111: Home | E111: H2H/Sub | F111: Comments
A112: 7 | B112: Cincinnati | C112: H2H | D112: New York (N) | E112: H2H
A113: 7 | B113: Kansas City | C113: H2H | D113: New England | E113: H2H
A114: 7 | B114: Indianapolis | C114: H2H | D114: Houston | E114: H2H
A115: 7 | B115: Miami | C115: H2H | D115: Oakland | E115: H2H
A116: 7 | B116: New York (A) | C116: H2H | D116: Denver | E116: H2H
A117: 7 | B117: Buffalo | C117: sim | D117: San Diego | E117: sim
A118: 7 | B118: Washington | C118: H2H | D118: Jacksonville | E118: H2H
A119: 7 | B119: Arizona | C119: H2H | D119: Tennessee | E119: H2H
A120: 7 | B120: Dallas | C120: H2H | D120: Baltimore | E120: H2H
A121: 7 | B121: Philadelphia | C121: H2H | D121: Pittsburgh | E121: H2H
A122: 7 | B122: Tampa Bay | C122: H2H | D122: New Orleans | E122: H2H
A123: 7 | B123: Minnesota | C123: H2H | D123: Carolina | E123: H2H
A124: 7 | B124: Detroit | C124: H2H | D124: Atlanta | E124: H2H
A125: 7 | B125: Green Bay | C125: H2H | D125: St. Louis | E125: H2H
A126: 7 | B126: Chicago | C126: sub CIN | D126: San Francisco | E126: H2H
A129: Week | B129: Visitor | C129: H2H/Sub | D129: Home | E129: H2H/Sub | F129: Comments
A130: 8 | B130: Pittsburgh | C130: H2H | D130: Cincinnati | E130: H2H
A131: 8 | B131: Jacksonville | C131: H2H | D131: Baltimore | E131: H2H
A132: 8 | B132: Houston | C132: H2H | D132: Kansas City | E132: H2H
A133: 8 | B133: Denver | C133: H2H | D133: Oakland | E133: H2H
A134: 8 | B134: Indianapolis | C134: H2H | D134: New England | E134: H2H
A135: 8 | B135: New York (A) | C135: sub SF | D135: Miami | E135: H2H
A136: 8 | B136: New York (N) | C136: H2H | D136: Tennessee | E136: H2H
A137: 8 | B137: Arizona | C137: H2H | D137: Philadelphia | E137: H2H
A138: 8 | B138: Dallas | C138: H2H | D138: Washington | E138: H2H
A139: 8 | B139: Minnesota | C139: H2H | D139: San Diego | E139: H2H
A140: 8 | B140: Green Bay | C140: H2H | D140: Tampa Bay | E140: H2H
A141: 8 | B141: Chicago | C141: sub CIN | D141: Detroit | E141: H2H
A142: 8 | B142: New Orleans | C142: sim | D142: Buffalo | E142: sim
A143: 8 | B143: Carolina | C143: H2H | D143: Atlanta | E143: H2H
A144: 8 | B144: St. Louis | C144: H2H | D144: San Francisco | E144: H2H
A147: Week | B147: Visitor | C147: H2H/Sub | D147: Home | E147: H2H/Sub | F147: Comments
A148: 9 | B148: Baltimore | D148: Cincinnati
A149: 9 | B149: Jacksonville | C149: H2H | D149: Arizona | E149: H2H
A150: 9 | B150: Tennessee | D150: Pittsburgh
A151: 9 | B151: Oakland | C151: H2H | D151: Kansas City | E151: H2H
A152: 9 | B152: Denver | D152: Detroit
A153: 9 | B153: San Diego | C153: H2H | D153: Houston | E153: H2H
A154: 9 | B154: Miami | D154: New England
A155: 9 | B155: New York (A) | D155: San Francisco
A156: 9 | B156: Buffalo | D156: Indianapolis
A157: 9 | B157: New York (N) | D157: Dallas
A158: 9 | B158: Philadelphia | D158: Washington
A159: 9 | B159: Tampa Bay | D159: Chicago
A160: 9 | B160: Green Bay | D160: Minnesota
A161: 9 | B161: Atlanta | D161: St. Louis
A162: 9 | B162: New Orleans | D162: Carolina
A165: Week | B165: Visitor | C165: H2H/Sub | D165: Home | E165: H2H/Sub | F165: Comments
A166: 10 | B166: Cincinnati | D166: Philadelphia
A167: 10 | B167: Pittsburgh | D167: Baltimore
A168: 10 | B168: Tennessee | D168: Jacksonville
A169: 10 | B169: Kansas City | D169: Chicago
A170: 10 | B170: Houston | D170: Oakland
A171: 10 | B171: San Diego | D171: Denver
A172: 10 | B172: New England | D172: St. Louis
A173: 10 | B173: Indianapolis | D173: Miami
A174: 10 | B174: Buffalo | D174: New York (A)
A175: 10 | B175: Washington | D175: New York (N)
A176: 10 | B176: Dallas | D176: Arizona
A177: 10 | B177: Minnesota | D177: Tampa Bay
A178: 10 | B178: Detroit | D178: Green Bay
A179: 10 | B179: New Orleans | D179: Atlanta
A180: 10 | B180: Carolina | D180: San Francisco
A183: Week | B183: Visitor | C183: H2H/Sub | D183: Home | E183: H2H/Sub | F183: Comments
A184: 11 | B184: Cincinnati | D184: Kansas City
A185: 11 | B185: Houston | D185: Pittsburgh
A186: 11 | B186: Oakland | D186: Baltimore
A187: 11 | B187: Denver | D187: Jacksonville
A188: 11 | B188: San Diego | D188: Tennessee
A189: 11 | B189: New England | D189: New Orleans
A190: 11 | B190: Washington | D190: Tampa Bay
A191: 11 | B191: Minnesota | D191: New York (N)
A192: 11 | B192: Detroit | D192: Arizona
A193: 11 | B193: Green Bay | D193: Dallas
A194: 11 | B194: Chicago | D194: Philadelphia
A195: 11 | B195: Atlanta | D195: New York (A)
A196: 11 | B196: San Francisco | D196: Buffalo
A197: 11 | B197: Carolina | D197: Miami
A198: 11 | B198: St. Louis | D198: Indianapolis
A201: Week | B201: Visitor | C201: H2H/Sub | D201: Home | E201: H2H/Sub | F201: Comments
A202: 12 | B202: Baltimore | D202: Tennessee
A203: 12 | B203: Jacksonville | D203: Cincinnati
A204: 12 | B204: Kansas City | D204: Denver
A205: 12 | B205: Oakland | D205: San Diego
A206: 12 | B206: Miami | D206: Buffalo
A207: 12 | B207: New York (A) | D207: New England
A208: 12 | B208: Washington | D208: Pittsburgh
A209: 12 | B209: Arizona | D209: New York (N)
A210: 12 | B210: Philadelphia | D210: Dallas
A211: 12 | B211: Tampa Bay | D211: Houston
A212: 12 | B212: Minnesota | D212: Detroit
A213: 12 | B213: Green Bay | D213: Chicago
A214: 12 | B214: Atlanta | D214: Indianapolis
A215: 12 | B215: New Orleans | D215: San Francisco
A216: 12 | B216: Carolina | D216: St. Louis
A219: Week | B219: Visitor | C219: H2H/Sub | D219: Home | E219: H2H/Sub | F219: Comments
A220: 13 | B220: Cincinnati | D220: Houston
A221: 13 | B221: Pittsburgh | D221: Denver
A222: 13 | B222: Baltimore | D222: Kansas City
A223: 13 | B223: Jacksonville | D223: San Diego
A224: 13 | B224: Tennessee | D224: Oakland
A225: 13 | B225: Indianapolis | D225: Carolina
... 57 more rows

Sheet File Receipts
A1: File Receipts
A3: Team | B3: Week 1 | C3: Week 2 | D3: Week 3 | E3: Week 4 | F3: Week 5 | G3: Week 6 | H3: Week 7 | I3: Week 8 | J3: Week 9 | K3: Week 10 | L3: Week 11 | M3: Week 12 | N3: Week 13 | O3: Week 14 | P3: Week 15 | Q3: Week 16 | R3: Total
A4: Arizona | B4: H2H | C4: H2H | D4: H2H | E4: H2H | F4: H2H | G4: H2H | H4: H2H | I4: H2H | J4: H2H | R4: =+COUNTIF(B4:Q4,"H2H") -> 9
A5: Atlanta | B5: sim | C5: H2H | D5: H2H | E5: H2H | F5: H2H | G5: H2H | H5: H2H | I5: H2H | R5: =+COUNTIF(B5:Q5,"H2H") -> 7
A6: Baltimore | B6: H2H | C6: H2H | D6: sub TEN | E6: sub ATL | F6: sub ATL | G6: sub SF | H6: H2H | I6: H2H | R6: 4
A7: Buffalo | B7: H2H | C7: H2H | D7: H2H | E7: H2H | F7: sub WAS | G7: H2H | H7: sim | I7: sim | R7: 5
A8: Carolina | B8: sub IND | C8: H2H | D8: H2H | E8: H2H | F8: sub SF | G8: H2H | H8: H2H | I8: H2H | R8: 6
A9: Chicago | B9: H2H | C9: H2H | D9: sub ATL | E9: H2H | F9: H2H | G9: sub CIN | H9: sub CIN | I9: sub CIN | R9: 4
A10: Cincinnati | B10: H2H | C10: H2H | D10: H2H | E10: H2H | F10: H2H | G10: H2H | H10: H2H | I10: H2H | R10: 8
A11: Dallas | B11: H2H | C11: H2H | D11: H2H | E11: H2H | F11: H2H | G11: H2H | H11: H2H | I11: H2H | R11: 8
A12: Denver | B12: H2H | C12: H2H | D12: sub GB | E12: H2H | F12: H2H | G12: H2H | H12: H2H | I12: H2H | R12: 7
A13: Detroit | B13: sub IND | C13: H2H | D13: H2H | E13: H2H | F13: H2H | G13: H2H | H13: H2H | I13: H2H | R13: 7
A14: Green Bay | B14: H2H | C14: H2H | D14: H2H | E14: H2H | F14: H2H | G14: H2H | H14: H2H | I14: H2H | R14: 8
A15: Houston | B15: H2H | C15: H2H | D15: H2H | E15: H2H | F15: H2H | G15: H2H | H15: H2H | I15: H2H | J15: H2H | R15: 9
A16: Indianapolis | B16: H2H | C16: H2H | D16: H2H | E16: H2H | F16: H2H | G16: H2H | H16: H2H | I16: H2H | R16: 8
A17: Jacksonville | B17: H2H | C17: H2H | D17: H2H | E17: H2H | F17: H2H | G17: H2H | H17: H2H | I17: H2H | J17: H2H | R17: 9
A18: Kansas City | B18: H2H | C18: H2H | D18: H2H | E18: H2H | F18: H2H | G18: H2H | H18: H2H | I18: H2H | J18: H2H | R18: 9
A19: Miami | B19: H2H | C19: H2H | D19: H2H | E19: H2H | F19: H2H | G19: H2H | H19: H2H | I19: H2H | R19: 8
A20: Minnesota | B20: H2H | C20: H2H | D20: H2H | E20: H2H | F20: H2H | G20: H2H | H20: H2H | I20: H2H | R20: 8
A21: New England | B21: H2H | C21: H2H | D21: H2H | E21: H2H | F21: H2H | G21: H2H | H21: H2H | I21: H2H | R21: 8
A22: New York (A) | B22: H2H | C22: H2H | D22: H2H | E22: H2H | F22: H2H | G22: H2H | H22: H2H | I22: sub SF | R22: 7
A23: New York (N) | B23: H2H | C23: H2H | D23: H2H | E23: H2H | F23: H2H | G23: H2H | H23: H2H | I23: H2H | R23: 8
A24: New Orleans | B24: H2H | C24: H2H | D24: H2H | E24: H2H | F24: H2H | G24: H2H | H24: H2H | I24: sim | R24: 7
A25: Oakland | B25: H2H | C25: H2H | D25: H2H | E25: H2H | F25: H2H | G25: H2H | H25: H2H | I25: H2H | J25: H2H | R25: 9
A26: Philadelphia | B26: H2H | C26: H2H | D26: H2H | E26: H2H | F26: H2H | G26: H2H | H26: H2H | I26: H2H | R26: 8
A27: Pittsburgh | B27: H2H | C27: H2H | D27: H2H | E27: H2H | F27: H2H | G27: H2H | H27: H2H | I27: H2H | R27: 8
A28: St. Louis | B28: H2H | C28: H2H | D28: sub WAS | E28: sub WAS | F28: H2H | G28: H2H | H28: H2H | I28: H2H | R28: 6
A29: San Diego | B29: H2H | C29: H2H | D29: H2H | E29: H2H | F29: sub MIA | G29: H2H | H29: sim | I29: H2H | J29: H2H | R29: 7
A30: San Francisco | B30: sim | C30: H2H | D30: sub ARI | E30: sub IND | F30: H2H | G30: H2H | H30: H2H | I30: H2H | R30: 5
A31: Tampa Bay | B31: H2H | C31: sub CIN | D31: H2H | E31: sub CIN | F31: H2H | G31: sub CIN | H31: H2H | I31: H2H | R31: 5
A32: Tennessee | B32: H2H | C32: H2H | D32: H2H | E32: H2H | F32: H2H | G32: H2H | H32: H2H | I32: H2H | R32: 8
A33: Washington | B33: H2H | C33: H2H | D33: H2H | E33: H2H | F33: H2H | G33: H2H | H33: H2H | I33: H2H | R33: 8
A35: TOTALS | B35: =+COUNTIF(B4:B33,"H2H")/30 -> 0.8666666667 | C35: =+COUNTIF(C4:C33,"H2H")/30 -> 0.9666666667 | D35: 0.8333333333 | E35: 0.8666666667 | F35: 0.8666666667 | G35: 0.9 | H35: 0.9 | I35: 0.8666666667 | J35: 0.2 | K35: 0 | L35: 0 | M35: 0 | N35: 0 | O35: 0 | P35: 0 | Q35: 0 | R35: =SUM(R4:R33) -> 218

Sheet 2013 Draft
A1: 2013 Draft Order
A3: Pick | B3: Team | C3: Record | D3: 2008-09-08 | E3: SOS
A4: 1 | B4: San Diego | C4: 1-15
A5: 2 | B5: St. Louis | C5: 2-14
A6: 3 | B6: Carolina | C6: 3-13
A7: 4 | B7: Buffalo | C7: 4-12 | E7: 0.484
A8: 5 | B8: Denver | C8: 4-12 | E8: 0.508
A9: 6 | B9: Tennessee | C9: 5-11 | E9: 0.508
A10: 7 | B10: Jacksonville | C10: 5-11 | E10: 0.563
A11: 8 | B11: New York (A) | C11: 6-10 | E11: 0.418
A12: 9 | B12: Miami | C12: 6-10 | E12: 0.434
A13: 10 | B13: Chicago | C13: 6-10 | E13: 0.453
A14: 11 | B14: Green Bay | C14: 6-10 | E14: 0.457
A15: 12 | B15: Indianapolis | C15: 6-10 | E15: 0.461
A16: 13 | B16: Detroit | C16: 6-10 | E16: 0.488
A17: 14 | B17: Oakland | C17: 6-10 | E17: 0.523
A18: 15 | B18: Philadelphia | C18: 6-10 | E18: 0.598
A19: 16 | B19: Minnesota | C19: 7-9
A20: 17 | B20: Dallas | C20: 8-8
A21: 18 | B21: San Francisco | C21: 9-7
A22: 19 | B22: Baltimore | C22: 7-9 | E22: playoffs | G22: eliminated wildcard round
A23: 20 | B23: Tampa Bay | C23: 10-6 | E23: 0.465 | G23: eliminated wildcard round
A24: 21 | B24: Houston | C24: 10-6 | E24: 0.48 | G24: eliminated wildcard round
A25: 22 | B25: New York (N) | C25: 14-2 | E25: playoffs | G25: eliminated wildcard round
A26: 23 | B26: Pittsburgh | C26: 10-6 | E26: playoffs | G26: eliminated divisional round
A27: 24 | B27: Arizona | C27: 11-5 | E27: playoffs | G27: eliminated divisional round
A28: 25 | B28: New England | C28: 13-3 | E28: 0.438 | G28: eliminated divisional round
A29: 26 | B29: New Orleans | C29: 13-3 | E29: 0.52 | G29: eliminated divisional round
A30: 27 | B30: Kansas City | C30: 13-3 | E30: 0.445 | G30: Conference Champion Participant
A31: 28 | B31: Atlanta | C31: 13-3 | E31: 0.469 | G31: Conference Champion Participant
A32: 29 | B32: Cincinnati | C32: 15-1 | E32: Runner-up
A33: 30 | B33: Washington | C33: 15-1 | E33: Champion

Sheet 2013 Draft Picks
A1: 2012 Draft Picks
A3: Pos | B3: Team | C3: 1 | D3: 2 | E3: 3 | F3: 4 | G3: 5 | H3: 6 | I3: 7 | J3: 8 | K3: 9 | L3: 10
A4: 1 | B4: San Diego
A5: 2 | B5: St. Louis
A6: 3 | B6: Carolina
A7: 4 | B7: Buffalo
A8: 5 | B8: Denver
A9: 6 | B9: Tennessee
A10: 7 | B10: Jacksonville
A11: 8 | B11: New York (A)
A12: 9 | B12: Miami
A13: 10 | B13: Chicago
A14: 11 | B14: Green Bay
A15: 12 | B15: Indianapolis
A16: 13 | B16: Detroit
A17: 14 | B17: Oakland
A18: 15 | B18: Philadelphia
A19: 16 | B19: Minnesota
A20: 17 | B20: Dallas
A21: 18 | B21: San Francisco
A22: 19 | B22: Baltimore
A23: 20 | B23: Tampa Bay
A24: 21 | B24: Houston
A25: 22 | B25: New York (N)
A26: 23 | B26: Pittsburgh
A27: 24 | B27: Arizona
A28: 25 | B28: New England
A29: 26 | B29: New Orleans
A30: 27 | B30: Kansas City
A31: 28 | B31: Atlanta
A32: 29 | B32: Cincinnati
A33: 30 | B33: Washington

Sheet Tie Breakers
A3: The draft order is determined by the following procedures:
A5: (A) The winner of the Super Bowl will select last and the other Super Bowl participant next-to-last, regardless of their regular-season record.
A7: (B) The Championship Game participants not advancing to the Super Bowl will select 29th and 30th, according to the reverse order of their standing.
A9: (C) The Divisional Playoff participants not advancing to the Championship Games will select 25th through 28th, according to the reverse order of their standing.
A11: (D) The Wild Card participants not advancing to the Divisional Playoffs will select 21st through 24th, according to the reverse order of their standing.
A13: (E) Non-playoff clubs will select first through 20th, according to the reverse order of their standing.
A15: If ties exist in any grouping except (A) above, they will be broken by strength of schedule (i.e., figuring the aggregate won-lost-tied percentage of each involved club’s regular-season opponents and awarding preferential selection order to the club which faced the schedule of teams with the lowest aggregate won-lost-tied percentage).
A17: If ties still exist after applying the strength of schedule tiebreaker, the divisional or conference tiebreakers are applied, if applicable. If the divisional or conference tiebreakers are not applicable, ties will be broken by a coin flip.
A19: Clubs involved in two-club ties will alternate positions from round-to-round. In ties that involve three or more clubs, the club at the top of a tied segment in a given round will move to the bottom of the segment for the next round, while all other clubs in the segment move up one position. This rotation continues throughout the draft.
B24: Philadelphia | I24: Chicago | P24: Detroit | W24: Green Bay | AD24: Indianapolis | AK24: Miami | AR24: New York (A) | AY24: Oakland
B26: Week | C26: Opponent | D26: W | E26: L | F26: T | I26: Week | J26: Opponent | K26: W | L26: L | M26: T | P26: Week | Q26: Opponent | R26: W | S26: L | T26: T | W26: Week | X26: Opponent | Y26: W | Z26: L | AA26: T | AD26: Week | AE26: Opponent | AF26: W | AG26: L | AH26: T | AK26: Week | AL26: Opponent | AM26: W | AN26: L | AO26: T | AR26: Week | AS26: Opponent | AT26: W | AU26: L | AV26: T | AY26: Week | AZ26: Opponent | BA26: W | BB26: L | BC26: T
B27: 1 | C27: Denver | D27: 4 | E27: 12 | I27: 1 | J27: Indianapolis | K27: 6 | L27: 10 | P27: 1 | Q27: Tampa Bay | R27: 10 | S27: 6 | W27: 1 | X27: @Minnesota | Y27: 7 | Z27: 9 | AD27: 1 | AE27: @Chicago | AF27: 6 | AG27: 10 | AK27: 1 | AL27: @New York (A) | AM27: 6 | AN27: 10 | AR27: 1 | AS27: Miami | AT27: 6 | AU27: 10 | AY27: 1 | AZ27: Kansas City | BA27: 13 | BB27: 3
B28: 2 | C28: Oakland | D28: 6 | E28: 10 | I28: 2 | J28: New Orleans | K28: 13 | L28: 3 | P28: 2 | Q28: Carolina | R28: 3 | S28: 13 | W28: 2 | X28: St. Louis | Y28: 2 | Z28: 14 | AD28: 2 | AE28: @Baltimore | AF28: 7 | AG28: 9 | AK28: 2 | AL28: @Jacksonville | AM28: 5 | AN28: 11 | AR28: 2 | AS28: @Pittsburgh | AT28: 10 | AU28: 6 | AY28: 2 | AZ28: @Philadelphia | BA28: 6 | BB28: 10
B29: 3 | C29: @Arizona | D29: 11 | E29: 5 | I29: 3 | J29: @Tampa Bay | K29: 10 | L29: 6 | P29: 3 | Q29: Minnesota | R29: 7 | S29: 9 | W29: 3 | X29: Miami | Y29: 6 | Z29: 10 | AD29: 3 | AE29: @New England | AF29: 13 | AG29: 3 | AK29: 3 | AL29: @Green Bay | AM29: 6 | AN29: 10 | AR29: 3 | AS29: @Buffalo | AT29: 4 | AU29: 12 | AY29: 3 | AZ29: Denver | BA29: 4 | BB29: 12
B30: 4 | C30: @Dallas | D30: 8 | E30: 8 | I30: 4 | J30: @Green Bay | K30: 6 | L30: 10 | P30: 4 | Q30: @Indianapolis | R30: 6 | S30: 10 | W30: 4 | X30: Chicago | Y30: 6 | Z30: 10 | AD30: 4 | AE30: Detroit | AF30: 6 | AG30: 10 | AK30: 4 | AL30: New York (A) | AM30: 6 | AN30: 10 | AR30: 4 | AS30: @Miami | AT30: 6 | AU30: 10 | AY30: 4 | AZ30: @Kansas City | BA30: 13 | BB30: 3
B31: 5 | C31: New York (N) | D31: 14 | E31: 2 | I31: 5 | J31: Minnesota | K31: 7 | L31: 9 | P31: 5 | Q31: @Green Bay | R31: 6 | S31: 10 | W31: 5 | X31: Detroit | Y31: 6 | Z31: 10 | AD31: 5 | AE31: @Miami | AF31: 6 | AG31: 10 | AK31: 5 | AL31: Indianapolis | AM31: 6 | AN31: 10 | AR31: 5 | AS31: New England | AT31: 13 | AU31: 3 | AY31: 5 | AZ31: San Diego | BA31: 1 | BB31: 15
B32: 6 | C32: Washiington | D32: 15 | E32: 1 | I32: 6 | J32: @Detroit | K32: 6 | L32: 10 | P32: 6 | Q32: Chicago | R32: 6 | S32: 10 | W32: 6 | X32: @Tampa Bay | Y32: 10 | Z32: 6 | AD32: 6 | AE32: Buffalo | AF32: 4 | AG32: 12 | AK32: 6 | AL32: @New England | AM32: 13 | AN32: 3 | AR32: 6 | AS32: @Minnesota | AT32: 7 | AU32: 9 | AY32: 6 | AZ32: @Houston | BA32: 10 | BB32: 6
B33: 7 | C33: @Kansas City | D33: 13 | E33: 3 | I33: 7 | J33: @St. Louis | K33: 2 | L33: 14 | P33: 7 | Q33: Atlanta | R33: 13 | S33: 3 | W33: 7 | X33: @San Francisco | Y33: 9 | Z33: 7 | AD33: 7 | AE33: Pittsburgh | AF33: 10 | AG33: 6 | AK33: 7 | AL33: Baltimore | AM33: 7 | AN33: 9 | AR33: 7 | AS33: Tennessee | AT33: 5 | AU33: 11 | AY33: 7 | AZ33: Dallas | BA33: 8 | BB33: 8
B34: 8 | C34: @Houston | D34: 10 | E34: 6 | I34: 8 | J34: @Miami | K34: 6 | L34: 10 | P34: 8 | Q34: @Tampa Bay | R34: 10 | S34: 6 | W34: 8 | X34: Minnesota | Y34: 7 | Z34: 9 | AD34: 8 | AE34: New England | AF34: 13 | AG34: 3 | AK34: 8 | AL34: Chicago | AM34: 6 | AN34: 10 | AR34: 8 | AS34: Buffalo | AT34: 4 | AU34: 12 | AY34: 8 | AZ34: @Denver | BA34: 4 | BB34: 12
B35: 9 | C35: Arizona | D35: 11 | E35: 5 | I35: 9 | J35: Tampa Bay | K35: 10 | L35: 6 | P35: 9 | Q35: @Minnesota | R35: 7 | S35: 9 | W35: 9 | X35: Buffalo | Y35: 4 | Z35: 12 | AD35: 9 | AE35: Miami | AF35: 6 | AG35: 10 | AK35: 9 | AL35: @Indianapolis | AM35: 6 | AN35: 10 | AR35: 9 | AS35: @New England | AT35: 13 | AU35: 3 | AY35: 9 | AZ35: @San Diego | BA35: 1 | BB35: 15
B36: 10 | C36: Dallas | D36: 8 | E36: 8 | I36: 10 | J36: Green Bay | K36: 6 | L36: 10 | P36: 10 | Q36: New York (A) | R36: 6 | S36: 10 | W36: 10 | X36: @Chicago | Y36: 6 | Z36: 10 | AD36: 10 | AE36: @Buffalo | AF36: 4 | AG36: 12 | AK36: 10 | AL36: New England | AM36: 13 | AN36: 3 | AR36: 10 | AS36: @Detroit | AT36: 6 | AU36: 10 | AY36: 10 | AZ36: Houston | BA36: 10 | BB36: 6
B37: 11 | C37: @Chicago | D37: 6 | E37: 10 | I37: 11 | J37: Philadelphia | K37: 6 | L37: 10 | P37: 11 | Q37: @Washington | R37: 15 | S37: 1 | W37: 11 | X37: Dallas | Y37: 8 | Z37: 8 | AD37: 11 | AE37: Denver | AF37: 4 | AG37: 12 | AK37: 11 | AL37: Houston | AM37: 10 | AN37: 6 | AR37: 11 | AS37: San Diego | AT37: 1 | AU37: 15 | AY37: 11 | AZ37: New England | BA37: 13 | BB37: 3
B38: 12 | C38: @New York (N) | D38: 14 | E38: 2 | I38: 12 | J38: @Minnesota | K38: 7 | L38: 9 | P38: 12 | Q38: Green Bay | R38: 6 | S38: 10 | W38: 12 | X38: @Detroit | Y38: 6 | Z38: 10 | AD38: 12 | AE38: New York (A) | AF38: 6 | AG38: 10 | AK38: 12 | AL38: Buffalo | AM38: 4 | AN38: 12 | AR38: 12 | AS38: @Indianapolis | AT38: 6 | AU38: 10 | AY38: 12 | AZ38: Arizona | BA38: 11 | BB38: 5
B39: 13 | C39: Minnesota | D39: 7 | E39: 9 | I39: 13 | J39: @Dallas | K39: 8 | L39: 8 | P39: 13 | Q39: @New York (N) | R39: 14 | S39: 2 | W39: 13 | X39: @Arizona | Y39: 11 | Z39: 5 | AD39: 13 | AE39: @Houston | AF39: 10 | AG39: 6 | AK39: 13 | AL39: @Oakland | AM39: 6 | AN39: 10 | AR39: 13 | AS39: @Denver | AT39: 4 | AU39: 12 | AY39: 13 | AZ39: Miami | BA39: 6 | BB39: 10
B40: 14 | C40: @San Francisco | D40: 9 | E40: 7 | I40: 14 | J40: New England | K40: 13 | L40: 3 | P40: 14 | Q40: @Buffalo | R40: 4 | S40: 12 | W40: 14 | X40: @New York (A) | Y40: 6 | Z40: 10 | AD40: 14 | AE40: @Tampa Bay | AF40: 10 | AG40: 6 | AK40: 14 | AL40: Minnesota | AM40: 7 | AN40: 9 | AR40: 14 | AS40: Green Bay | AT40: 6 | AU40: 10 | AY40: 14 | AZ40: @Tennessee | BA40: 5 | BB40: 11
B41: 15 | C41: @Washington | D41: 15 | E41: 1 | I41: 15 | J41: Detroit | K41: 6 | L41: 10 | P41: 15 | Q41: @Chicago | R41: 6 | S41: 10 | W41: 15 | X41: Tampa Bay | Y41: 10 | Z41: 6 | AD41: 15 | AE41: @New York (A) | AF41: 6 | AG41: 10 | AK41: 15 | AL41: @Buffalo | AM41: 4 | AN41: 12 | AR41: 15 | AS41: Indianapolis | AT41: 6 | AU41: 10 | AY41: 15 | AZ41: @New York (N) | BA41: 14 | BB41: 2
B42: 16 | C42: St. Louis | D42: 2 | E42: 14 | I42: 16 | J42: @Buffalo | K42: 4 | L42: 12 | P42: 16 | Q42: Miami | R42: 6 | S42: 10 | W42: 16 | X42: @New England | Y42: 13 | Z42: 3 | AD42: 16 | AE42: Minnesota | AF42: 7 | AG42: 9 | AK42: 16 | AL42: @Detroit | AM42: 6 | AN42: 10 | AR42: 16 | AS42: Tampa Bay | AT42: 10 | AU42: 6 | AY42: 16 | AZ42: @Cincinnati | BA42: 15 | BB42: 1
G43: PCT | N43: PCT | U43: PCT | AB43: PCT | AI43: PCT | AP43: PCT | AW43: PCT | BD43: PCT
C44: Total | D44: =SUM(D27:D43) -> 153 | E44: =SUM(E27:E43) -> 103 | F44: =SUM(F27:F43) -> 0 | G44: =D44/256 -> 0.59765625 | J44: Total | K44: =SUM(K27:K43) -> 116 | L44: =SUM(L27:L43) -> 140 | M44: =SUM(M27:M43) -> 0 | N44: =K44/256 -> 0.453125 | Q44: Total | R44: =SUM(R27:R43) -> 125 | S44: =SUM(S27:S43) -> 131 | T44: =SUM(T27:T43) -> 0 | U44: =R44/256 -> 0.48828125 | X44: Total | Y44: =SUM(Y27:Y43) -> 117 | Z44: =SUM(Z27:Z43) -> 139 | AA44: =SUM(AA27:AA43) -> 0 | AB44: =Y44/256 -> 0.45703125 | AE44: Total | AF44: =SUM(AF27:AF43) -> 118 | AG44: =SUM(AG27:AG43) -> 138 | AH44: =SUM(AH27:AH43) -> 0 | AI44: =AF44/256 -> 0.4609375 | AL44: Total | AM44: =SUM(AM27:AM43) -> 111 | AN44: =SUM(AN27:AN43) -> 145 | AO44: =SUM(AO27:AO43) -> 0 | AP44: =AM44/256 -> 0.43359375 | AS44: Total | AT44: =SUM(AT27:AT43) -> 107 | AU44: =SUM(AU27:AU43) -> 149 | AV44: =SUM(AV27:AV43) -> 0 | AW44: =AT44/256 -> 0.41796875 | AZ44: Total | BA44: =SUM(BA27:BA43) -> 134 | BB44: =SUM(BB27:BB43) -> 122 | BC44: =SUM(BC27:BC43) -> 0 | BD44: =BA44/256 -> 0.5234375
B51: Week | C51: Opponent | D51: W | E51: L | F51: T | I51: Week | J51: Opponent | K51: W | L51: L | M51: T
B52: 1 | I52: 1
B53: 2 | I53: 2
B54: 3 | I54: 3
B55: 4 | I55: 4
B56: 5 | I56: 5
B57: 6 | I57: 6
B58: 7 | I58: 7
B59: 8 | I59: 8
B60: 9 | I60: 9
B61: 10 | I61: 10
B62: 11 | I62: 11
B63: 12 | I63: 12
B64: 13 | I64: 13
B65: 14 | I65: 14
B66: 15 | I66: 15
B67: 16 | I67: 16
G68: PCT | N68: PCT
C69: Total | D69: =SUM(D52:D68) -> 0 | E69: =SUM(E52:E68) -> 0 | F69: =SUM(F52:F68) -> 0 | G69: =D69/256 -> 0 | J69: Total | K69: =SUM(K52:K68) -> 0 | L69: =SUM(L52:L68) -> 0 | M69: =SUM(M52:M68) -> 0 | N69: =K69/256 -> 0
B74: Kansas City | I74: Atlanta
B76: Week | C76: Opponent | D76: W | E76: L | F76: T | I76: Week | J76: Opponent | K76: W | L76: L | M76: T
B77: 1 | C77: @Oakland | D77: 6 | E77: 10 | I77: 1 | J77: Carolina | K77: 3 | L77: 13
B78: 2 | C78: Washiington | D78: 15 | E78: 1 | I78: 2 | J78: @Minnesota | K78: 7 | L78: 9
B79: 3 | C79: @San Diego | D79: 1 | E79: 15 | I79: 3 | J79: New Orleans | K79: 13 | L79: 3
B80: 4 | C80: Oakland | D80: 6 | E80: 10 | I80: 4 | J80: @Baltimore | K80: 7 | L80: 9
B81: 5 | C81: @Arizona | D81: 11 | E81: 5 | I81: 5 | J81: San Francisco | K81: 9 | L81: 7
B82: 6 | C82: Denver | D82: 4 | E82: 12 | I82: 6 | J82: @St. Louis | K82: 2 | L82: 14
B83: 7 | C83: Philadelphia | D83: 6 | E83: 10 | I83: 7 | J83: @Detroit | K83: 6 | L83: 10
B84: 8 | C84: San Diego | D84: 1 | E84: 15 | I84: 8 | J84: @Carolina | K84: 3 | L84: 13
B85: 9 | C85: @Dallas | D85: 8 | E85: 8 | I85: 9 | J85: @New Orleans | K85: 13 | L85: 3
B86: 10 | C86: @Denver | D86: 4 | E86: 12 | I86: 10 | J86: Pittsburgh | K86: 10 | L86: 6
B87: 11 | C87: @Buffalo | D87: 4 | E87: 12 | I87: 11 | J87: Jacksonville | K87: 5 | L87: 11
B88: 12 | C88: Houston | D88: 10 | E88: 6 | I88: 12 | J88: @San Francisco | K88: 9 | L88: 7
B89: 13 | C89: New England | D89: 13 | E89: 3 | I89: 13 | J89: @Tennessee | K89: 5 | L89: 11
B90: 14 | C90: @Pittsburgh | D90: 10 | E90: 6 | I90: 14 | J90: Arizona | K90: 11 | L90: 5
B91: 15 | C91: @Houston | D91: 10 | E91: 6 | I91: 15 | J91: St. Louis | K91: 2 | L91: 14
B92: 16 | C92: Tennessee | D92: 5 | E92: 11 | I92: 16 | J92: Washington | K92: 15 | L92: 1
G93: PCT | N93: PCT
C94: Total | D94: =SUM(D77:D93) -> 114 | E94: =SUM(E77:E93) -> 142 | F94: =SUM(F77:F93) -> 0 | G94: =D94/256 -> 0.4453125 | J94: Total | K94: =SUM(K77:K93) -> 120 | L94: =SUM(L77:L93) -> 136 | M94: =SUM(M77:M93) -> 0 | N94: =K94/256 -> 0.46875
B99: New England | I99: New Orleans
B101: Week | C101: Opponent | D101: W | E101: L | F101: T | I101: Week | J101: Opponent | K101: W | L101: L | M101: T
B102: 1 | C102: @Buffalo | D102: 4 | E102: 12 | I102: 1 | J102: San Francisco | K102: 9 | L102: 7
B103: 2 | C103: Cincinnati | D103: 15 | E103: 1 | I103: 2 | J103: @Chicago | K103: 6 | L103: 10
B104: 3 | C104: Indianapolis | D104: 6 | E104: 10 | I104: 3 | J104: @Atlanta | K104: 13 | L104: 3
B105: 4 | C105: Buffalo | D105: 4 | E105: 12 | I105: 4 | J105: Carolina | K105: 3 | L105: 13
B106: 5 | C106: @New York (A) | D106: 6 | E106: 10 | I106: 5 | J106: @St. Louis | K106: 2 | L106: 14
B107: 6 | C107: Miami | D107: 6 | E107: 10 | I107: 6 | J107: Pittsburgh | K107: 10 | L107: 6
B108: 7 | C108: Jacksonville | D108: 5 | E108: 11 | I108: 7 | J108: Minnesota | K108: 7 | L108: 9
B109: 8 | C109: @Indianapolis | D109: 6 | E109: 10 | I109: 8 | J109: @San Francisco | K109: 9 | L109: 7
B110: 9 | C110: New York (A) | D110: 6 | E110: 10 | I110: 9 | J110: Atlanta | K110: 13 | L110: 3
B111: 10 | C111: @Miami | D111: 6 | E111: 10 | I111: 10 | J111: @Carolina | K111: 3 | L111: 13
B112: 11 | C112: @Oakland | D112: 6 | E112: 10 | I112: 11 | J112: @Baltimore | K112: 7 | L112: 9
B113: 12 | C113: Tampa Bay | D113: 10 | E113: 6 | I113: 12 | J113: St. Louis | K113: 2 | L113: 14
B114: 13 | C114: @Kansas City | D114: 13 | E114: 3 | I114: 13 | J114: @Jacksonville | K114: 5 | L114: 11
B115: 14 | C115: @Chicago | D115: 6 | E115: 10 | I115: 14 | J115: Washington | K115: 15 | L115: 1
B116: 15 | C116: @Minnesota | D116: 7 | E116: 9 | I116: 15 | J116: Cincinnati | K116: 15 | L116: 1
B117: 16 | C117: Green Bay | D117: 6 | E117: 10 | I117: 16 | J117: @New York (N) | K117: 14 | L117: 2
G118: PCT | N118: PCT
C119: Total | D119: =SUM(D102:D118) -> 112 | E119: =SUM(E102:E118) -> 144 | F119: =SUM(F102:F118) -> 0 | G119: =D119/256 -> 0.4375 | J119: Total | K119: =SUM(K102:K118) -> 133 | L119: =SUM(L102:L118) -> 123 | M119: =SUM(M102:M118) -> 0 | N119: =K119/256 -> 0.51953125
B125: Houston | I125: Tampa Bay
B127: Week | C127: Opponent | D127: W | E127: L | F127: T | I127: Week | J127: Opponent | K127: W | L127: L | M127: T
B128: 1 | C128: @San Diego | D128: 1 | E128: 15 | I128: 1 | J128: @Detroit | K128: 6 | L128: 10
B129: 2 | C129: New York (N) | D129: 14 | E129: 2 | I129: 2 | J129: San Francisco | K129: 9 | L129: 7
B130: 3 | C130: @Dallas | D130: 8 | E130: 8 | I130: 3 | J130: Chicago | K130: 6 | L130: 10
B131: 4 | C131: San Diego | D131: 1 | E131: 15 | I131: 4 | J131: @Minnesota | K131: 7 | L131: 9
B132: 5 | C132: @Denver | D132: 4 | E132: 12 | I132: 5 | J132: Buffalo | K132: 4 | L132: 12
B133: 6 | C133: Oakland | D133: 6 | E133: 10 | I133: 6 | J133: Green Bay | K133: 6 | L133: 10
B134: 7 | C134: @Washington | D134: 15 | E134: 1 | I134: 7 | J134: @Carolina | K134: 3 | L134: 13
B135: 8 | C135: Philadelphia | D135: 6 | E135: 10 | I135: 8 | J135: Detroit | K135: 6 | L135: 10
B136: 9 | C136: Denver | D136: 4 | E136: 12 | I136: 9 | J136: @Chicago | K136: 6 | L136: 10
B137: 10 | C137: @Oakland | D137: 6 | E137: 10 | I137: 10 | J137: Minnesota | K137: 7 | L137: 9
B138: 11 | C138: @Miami | D138: 6 | E138: 10 | I138: 11 | J138: Arizona | K138: 12 | L138: 4
B139: 12 | C139: @Kansas City | D139: 13 | E139: 3 | I139: 12 | J139: @New England | K139: 14 | L139: 2
B140: 13 | C140: Indianapolis | D140: 6 | E140: 10 | I140: 13 | J140: @Washington | K140: 15 | L140: 1
B141: 14 | C141: @Cincinnati | D141: 15 | E141: 1 | I141: 14 | J141: Indianapolis | K141: 6 | L141: 10
B142: 15 | C142: Kansas City | D142: 13 | E142: 3 | I142: 15 | J142: @Green Bay | K142: 6 | L142: 10
B143: 16 | C143: Jacksonville | D143: 5 | E143: 11 | I143: 16 | J143: @New York (A) | K143: 6 | L143: 10
G144: PCT | N144: PCT
C145: Total | D145: =SUM(D128:D144) -> 123 | E145: =SUM(E128:E144) -> 133 | F145: =SUM(F128:F144) -> 0 | G145: =D145/256 -> 0.48046875 | J145: Total | K145: =SUM(K128:K144) -> 119 | L145: =SUM(L128:L144) -> 137 | M145: =SUM(M128:M144) -> 0 | N145: =K145/256 -> 0.46484375
B151: Jacksonville | I151: Tennessee
B153: Week | C153: Opponent | D153: W | E153: L | F153: T | I153: Week | J153: Opponent | K153: W | L153: L | M153: T
B154: 1 | C154: @Pittsburgh | D154: 10 | E154: 6 | I154: 1 | J154: @Cincinnati | K154: 15 | L154: 1
B155: 2 | C155: Miami | D155: 6 | E155: 10 | I155: 2 | J155: Buffalo | K155: 4 | L155: 12
B156: 3 | C156: @San Francisco | D156: 9 | E156: 7 | I156: 3 | J156: Pittsburgh | K156: 10 | L156: 6
B157: 4 | C157: Pittsburgh | D157: 10 | E157: 6 | I157: 4 | J157: Cincinnati | K157: 15 | L157: 1
B158: 5 | C158: @Baltimore | D158: 7 | E158: 9 | I158: 5 | J158: @Carolina | K158: 3 | L158: 13
B159: 6 | C159: @Cincinnati | D159: 15 | E159: 1 | I159: 6 | J159: Baltimore | K159: 7 | L159: 9
B160: 7 | C160: @New England | D160: 13 | E160: 3 | I160: 7 | J160: @New York(A) | K160: 6 | L160: 10
B161: 8 | C161: St. Louis | D161: 2 | E161: 14 | I161: 8 | J161: @Pittsburgh | K161: 10 | L161: 6
B162: 9 | C162: Baltimore | D162: 7 | E162: 9 | I162: 9 | J162: @San Francisco | K162: 9 | L162: 7
B163: 10 | C163: Cincinnati | D163: 15 | E163: 1 | I163: 10 | J163: @Baltimore | K163: 7 | L163: 9
B164: 11 | C164: @Atlanta | D164: 13 | E164: 3 | I164: 11 | J164: St. Louis | K164: 2 | L164: 14
B165: 12 | C165: Tennessee | D165: 5 | E165: 11 | I165: 12 | J165: @Jacksonville | K165: 5 | L165: 11
B166: 13 | C166: New Orleans | D166: 13 | E166: 3 | I166: 13 | J166: Atlanta | K166: 13 | L166: 3
B167: 14 | C167: Denver | D167: 4 | E167: 12 | I167: 14 | J167: Oakland | K167: 6 | L167: 10
B168: 15 | C168: @Tennessee | D168: 5 | E168: 11 | I168: 15 | J168: Jacksonville | K168: 5 | L168: 11
B169: 16 | C169: @Houston | D169: 10 | E169: 6 | I169: 16 | J169: @Kansas City | K169: 13 | L169: 3
G170: PCT | N170: PCT
C171: Total | D171: =SUM(D154:D170) -> 144 | E171: =SUM(E154:E170) -> 112 | F171: =SUM(F154:F170) -> 0 | G171: =D171/256 -> 0.5625 | J171: Total | K171: =SUM(K154:K170) -> 130 | L171: =SUM(L154:L170) -> 126 | M171: =SUM(M154:M170) -> 0 | N171: =K171/256 -> 0.5078125
B177: Buffalo | I177: Denver
B179: Week | C179: Opponent | D179: W | E179: L | F179: T | I179: Week | J179: Opponent | K179: W | L179: L | M179: T
B180: 1 | C180: New England | D180: 13 | E180: 3 | I180: 1 | J180: @Philadelphia | K180: 6 | L180: 10
B181: 2 | C181: @Tennessee | D181: 5 | E181: 11 | I181: 2 | J181: @Arizona | K181: 11 | L181: 5
B182: 3 | C182: New York (A) | D182: 6 | E182: 10 | I182: 3 | J182: @Oakland | K182: 6 | L182: 10
B183: 4 | C183: @New England | D183: 13 | E183: 3 | I183: 4 | J183: Washington | K183: 15 | L183: 1
B184: 5 | C184: @Tampa Bay | D184: 10 | E184: 6 | I184: 5 | J184: Houston | K184: 10 | L184: 6
B185: 6 | C185: @Indianapolis | D185: 6 | E185: 10 | I185: 6 | J185: @Kansas City | K185: 13 | L185: 3
B186: 7 | C186: Cincinnati | D186: 15 | E186: 1 | I186: 7 | J186: New York (N) | K186: 14 | L186: 2
B187: 8 | C187: @New York (A) | D187: 6 | E187: 10 | I187: 8 | J187: Oakland | K187: 6 | L187: 10
B188: 9 | C188: @Green Bay | D188: 6 | E188: 10 | I188: 9 | J188: @Houston | K188: 10 | L188: 6
B189: 10 | C189: Indianapolis | D189: 6 | E189: 10 | I189: 10 | J189: Kansas City | K189: 13 | L189: 3
B190: 11 | C190: Kansas City | D190: 13 | E190: 3 | I190: 11 | J190: @Indianapolis | K190: 6 | L190: 10
B191: 12 | C191: @Miami | D191: 6 | E191: 10 | I191: 12 | J191: @San Diego | K191: 1 | L191: 15
B192: 13 | C192: @San Diego | D192: 1 | E192: 15 | I192: 13 | J192: New York (A) | K192: 6 | L192: 10
B193: 14 | C193: Detroit | D193: 6 | E193: 10 | I193: 14 | J193: @Jacksonville | K193: 5 | L193: 11
B194: 15 | C194: Miami | D194: 6 | E194: 10 | I194: 15 | J194: San Diego | K194: 1 | L194: 15
B195: 16 | C195: Chicago | D195: 6 | E195: 10 | I195: 16 | J195: Baltimore | K195: 7 | L195: 9
G196: PCT | N196: PCT
C197: Total | D197: =SUM(D180:D196) -> 124 | E197: =SUM(E180:E196) -> 132 | F197: =SUM(F180:F196) -> 0 | G197: =D197/256 -> 0.484375 | J197: Total | K197: =SUM(K180:K196) -> 130 | L197: =SUM(L180:L196) -> 126 | M197: =SUM(M180:M196) -> 0 | N197: =K197/256 -> 0.5078125

Sheet Transactions
A1: Transactions
A2: Date | B2: TEAM #1 | C2: SEND | D2: TEAM #2 | E2: FOR
A4: 2012 Transactions
A5: 11-22-12 In-Season Transaction
A6: Redskins claim David Buehler PK and release Bryan Mattison C-G
A8: 11-14-12 In-Season Transaction
A9: Redskins claim Jerome Boyd SA and release Rian Lindell PK
A11: 11-7-12 In-Season Transaction
A12: Bears claim Colin Brown OC and release Scott Mruczkowski OC.
A14: 11-3-12 In-Season Transaction
A15: Bears claim Artis Hicks OG, Demar Dotson OT, Jeremiah Johnson RB, and John Clay RB and release Jason Spitz C-G, Bruce Campbell G-T, Steve Slaton RB and Brandon Hogan CB.
A17: 10-26-12 In-Season Transaction
A18: Dolphins claim Mark LeVoir OG and releases Mike Kafka QB.
A20: 10-13-12 In-Season Transaction
A21: Packers claim Anthony Adams DT and releases Bob Sanders SA.
A23: 10-8-12 Trade
A24: Packers trade Oshiomogho Atogwe SA, Sherrod Martin SA, and LaDainian Tomlinson RB to the Steelers for Reshad Jones SA, Quintin Demps SA, and Felix Jones RB.
A26: 10-7-12 Trade
A27: Packers trade Frank Kearse DL to Bears for Craig Steltz DB.
A29: 10-6-12 Trade
A30: Bengals trade Arthur Moats DE-LB to the Bears for Thomas Howard OLB.
A32: 10-2-12 In-Season Transaction
A33: Falcons claim Josh Barrett SA and Sammie Stroughter WR and release Scott Paxson DT and Auston English DE.
A35: 10-2-12 Trade
A36: Lions trades Bryan Dawkins SA, Davin Joseph OG, and Brian McCann, CB to the Patriots for Joe Berger C/G, Roman Harper SA, and Carlton Mitchell WR.
A38: 10-2-12 In-Season Transaction
A39: Forty Niners claim Alex Smith TE and Byron Westbrook CB.
A41: 10-1-12 Trade
A42: Forty Niners trade Dexter McCluster RB, Brandon LaFell WR, and Quentin Jammer CB to the Bills for Stevie Johnson WR.
A44: 10-1-12 In-Season Transaction
A45: Buccaneers claim Jimmy Wilson CB and release Jerome Murphy CB.
A47: 9-29-12 Trade
A48: Packers trade Mark Herzlich OLB to Jaguars for Joey Porter OLB.
A50: 9-22-12 In-Season Transaction
A51: Eagles claim Lorenzo Booker RB and release Chastin West WR.
A53: 9-19-12 In-Season Transaction
A54: Redskins claim Bryan Mattison C-G and Ryan Lindell PK and release Mark Levoir G-T and Shawne Merriman DE-LB.
A56: 9-16-12 In-Season Transaction
A57: Dolphins claim Mike Kafka QB and release Ron Bartell CB.
A59: 9-14-12 In-Season Transaction
A60: Dolphins claim Benny Sapp CB and release Jeremiah Johnson RB.
A62: 9-14-12 In-Season Transaction
A63: Redskins claim Shawne Merriman DE-LB and release Adrian Arrington WR.
A65: 9-14-12 In-Season Transaction
A66: Colts claim Derrick Ward RB and release Alex Smith HB.
A68: 9-8-12 Trade
A69: Saints trade Kendrick Lewis SA and Kevin Walter WR to the Patriots for Nate Burleson WR and Abram Elam SA.
A71: 9-6-12 In-Season Transaction
A72: Eagles claim Paul Oliver SA and release Bryan Mattison C-G
A74: 8-28-12 Trade
A75: Eagles trade Arthur Moats DE-LB to the Bengals for Da'Norris Searcy SA.
A77: 8-28-12 In-Season Transaction
A78: Patriots claim Mike Williams WR and release Shawne Merriman DE-LB.
A80: 8-27-12 In-Season Transaction
A81: Redskins claim Mark LeVoir OG and release Mike Kafka QB.
A83: 8-15-12 Stat Package
A84: Giants release Tyrell Johnson SA to add Wide Receiver stat packages to DeMarco Sampson WR and Steve Smith WR. .
A86: 8-15-12 Stat Package
A87: Rams release Ronald Field DT to add Wide Receiver stat package to Terrnace Copper WR and Dominique Curry WR. Rams also add Return stat package to Ronnie Brown Ret and Lance Ball Ret. Rams roster at required 50 players..
A89: 8-15-12 Stat Package
A90: Cardinals release Derrick Ward RB to add a Running Back stat package to Bilal Powell RB.
A92: 8-15-12 Stat Package
A93: Panthers release Danny McCray SA and Bryant Johnson WR to add a Running Back stat package to Dane Fletcher and a Wide Receiver stat package to Danny Amendola WR.
A95: 8-15-12 Stat Package
A96: Raiders release Brady Quinn QB to add a Return stat package to Perrish Cox Ret.
A98: 8-15-12 Stat Package
A99: Jets release John Gilmore TE to add a Return stat package to Sabby Piscitelli Ret.
A101: 8-14-12 Stat Package
A102: Chargers release Antonio Dixon DT and Mike Williams WR to add a Quarterback stat package to Tyrod Taylor QB and a Running Back stat package to Anthony Allen RB.
A104: 8-14-12 Stat Package
A105: Eagles release Ovie Mughelli RB and Jerome Boyd SA to add Wide Receiver stat packages to Donald Butler WR and David Gettis WR and a Returner stat package to Sam Hurd KR.
A107: 8-14-12 Stat Package
A108: Jaguars release Lorenzo Booker RB and Sammie Stroughter WR to add a Wide Receiver stat packages to Emmanual Arceneaux WR and Anthony Armstrong WR and a Running Back stat package to Alfonso Smith RB.
A110: 8-14-12 Stat Package
A111: Jets release Seth Olsen OG and are assigned Jimmy Claussen QB to meet league required minimum passing attempts.
A112: Jets release Josh Barrett SA to add Quarterback stat package to Jimmy Claussen QB.
A114: 8-14-12 Stat Package
A115: Bills release C.J. Spillman DB, Mark LeVoir G-T, and Cameron Morrah TE to add a Running Back stat package to Curtis Brinkley RB, Wide Receiver stat packages to Brian Robiskie WR and Chansi Stuckey WR and a Tight End stat package to Jim Dray HB.
A117: 8-11-12 Stat Package
A118: Raiders release Cory Greenwood LB to add a WR stat packages to Jordan Shipley WR and Brandon Stokley WR.
A120: 8-10-12 Stat Package
A121: Bengals release Ryan McBean DT to add a Running Back stat package to Alex Green RB.
A123: 8-8-12 Stat Package
A124: Steelers release Britt Miller RB to add a Quarterback stat package to Tyler Palko QB.
A126: 7-21-12 Trade
A127: Rams trade Jermon Bushrod OT to the Falcons for Anquan Boldin WR.
A129: 7-15-12 Stat Package
A130: Ravens release Alex Barron OT and Tony Moll OG to add a Tight End stat package to Garrett Graham TE and a Running Back stat package to Javarris James RB.
A132: 7-14-12 Stat Package
A133: Colts release Rashad Butler OT to add a Return stat package to Mathew Slater RET.
A135: 7-14-12 Stat Package
A136: Dolphins release Erik Coleman SA, Blair White WR, and Leonard Davis OG to add a Quarterback package to Luke McKown QB, a return package to Michael Spurlock RET, and a Wide Receiver stat packages to Richard Goodman WR and Michael Spurlock WR..
A138: 7-13-12 Stat Package
A139: Titans release Mike Person OT and Justin Cole OLB to add a Running Back stat package to Moran Norris RB and a return package to Jordan Babineaux SA.
A141: 7-11-12 Stat Package
A142: Saints release David Carr QB and Mario Henderson OT to add a Wide Receiver stat package to Kevin Cone WR and a Running Back stat package to Mike Goodsen RB.
A144: 7-10-12 Stat Package
A145: Steelers release quinton spears DE/LB and Mike Sellers RB to add a Wide Receiver stat package to Jerheme Urban WR and a Running Back stat package to Tyler Clutts RB.
A147: 7-10-12 Stat Package
A148: Packers release Keary Colbert WR and Kevin Kowalski C-G to add a Wide Receiver stat package to Kris Durham WR and a Running Back stat package to Larry Johnson RB.
A150: 7-10-12 Stat Package
A151: Broncos release Patrick Bailey LB and Courtney Greene SA to add Wide Receiver stat packages to David Reed WR and Kealoha Pilares WR.
A153: 7-10-12 Stat Package
A154: Vikings release Colin Cloherty TE, Ropati Pitoitua DT, and David Anderson WR to add a running back stat package to Jason Snelling RB, a Tight End stat package to Jeron Mastrud TE, and a Wide Receiver stat package to Niles Paul WR.
A156: 7-10-12 Stat Package
A157: Texans release Donald Washington SA to add a KR/PR stat package to Maurice Morris RB.
A159: TRANSACTIONS DURING DRAFT
A161: 6-30-12 Trade:
A162: Broncos trade Jeremy Trueblood OT and Antwan Barnes DE-LB to the Patriots for Anthony Davis OT, Chris Culliver DB, Patriots #8, and Patriots #9.
A164: 6-27-12 Trade:
A165: Colts trade Colts #6 to the Packers for Bears #7 and Packers #7.
A167: 6-27-12 Trade:
A168: Patriots trade Dallas Clark TE to the Raiders for Lance Louis OG and Giants #5.
A170: 6-25-12 Trade:
A171: Buccaneers trade Joe Mays ILB to the Colts for Raiders #3.
A173: 6-25-12 Trade:
A174: Falcons trade Steelers #4, Falcons #4, Falcons #5, and Cassius Vaughn CB to the Dolphins for Dolphins #3, Dolphins #10 and Amari Spievey SA..
A176: 6-25-12 Trade:
A177: Redskins trade Sen'Derrick Marks DT to the Steelers for Steelers #5.
A179: 6-25-12 Trade:
A180: Colts trade David Baas OC, Colts #4, and 49ers #6 to the Bears for Golden Tate WR.
A182: 6-24-12 Trade:
A183: Patriots trade Jason Taylor to the Redskins for Titans #5.
A185: 6-24-12 Trade:
A186: Steelers trade Steelers #4 to the Falcons for Will Weatherspoon OLB.
A188: 6-23-12 Trade:
A189: Redskins trade Lions #1 to the Titans for Titans #2 and Titans #5.
A191: 6-23-12 Trade:
A192: Redskins trade Redskins #1 to the Lions for Lions #1 and Lions #5.
A194: 6-23-12 Trade:
A195: Colts trade J.D. Walton OC to the Raiders for Raiders #5.
A197: 6-23-12 Trade:
A198: Raiders trade Leon Washington RB/KR to the Giants for Giants #5.
A200: 6-23-12 Trade:
A201: Falcons trade Falcon #1, Falcon #3, Leon Hall CB, and Shawn Lauvao OG to the Bears for Von Miller OLB, Mark Anderson DE, and Bears #5.
A203: 6-23-12 Trade:
A204: Chargers trade Steelers #1 to the Bears for Cowboys #1 and Bears #6.
A206: 6-22-12 Trade:
A207: Raiders trade Steelers #1 and 49ers #5 to Chargers for Chargers #1.
A209: PRE-DRAFT TRANSACTIONS
A211: 5-25-12 Trade:
A212: Bengals trade Jeremy Trueblood OT, Jerry Hughes DE, and Jermaine Cunningham DE-OLB to the Broncos for Brad Meester OC.
A214: 5-23-12 Colts release:
A215: Jovan Haye DT.
A217: 5-23-12 Rams release:
A218: Maurice Stovall WR, Tiquan Underwood WR, Mark Clayton WR, and Gerald Alexander SA.
A220: 5-23-12 Uncarded Retention:
A221: Ravens retain Javarris James RB, Alex Barron OT, Joshua Moore CB.
A223: 5-23-12 Panthers release:
A224: Kerry Collins QB, Jake Delhhome QB, David Thomas TE.
A226: 5-22-12 Falcons release:
A227: Courtney Roby WR and Quintin Demps SA.
A229: 5-22-12 Chargers release:
A230: Jimmy Claussen QB, Rashied Davis WR, Artis Hicks G-T, and Al Woods DE.
A232: 5-21-12 Bears release:
A233: Robert Malone P, Larry English OLB, Brett Goode OC, Quinn Ojinnaka OT, Jonathan Wade CB, Jason Hunter DE, Scott Mruczkowski C-G, Nate Kaeding PK, and John Beck QB.
A235: 5-21-12 Ravens release:
A236: Mike Sellers RB.
A238: 5-21-12 Trade:
A239: Bengals trade Devin Thomas WR-KR to the Chiefs for Mike Nugent PK.
A241: 5-21-12 Bengals release:
A242: Rian Lindell PK.
A244: 5-20-12 Cowboys release:
A245: Derrick Mason WR, Chad Hall, WR, Nick Hayden DT, Keyunta Dawson DE, and Keith Brooking ILB.
A247: 5-19-12 Jets release:
A248: Mike Gibson OG, Derrick Dockery OG, Daniel Graham TE, Justin Peelle TE, Ogemdi Nwagbuo DL, Brian Iwuh OLB, Will Herring OLB, and Paul Oliver SA.
A250: 5-18-12 Chiefs release:
A251: Kevin Faulk RB, Bryant Johnson WR, Bear Pascoe HB, Jim Dray HB, Casey Rabach OC, Kyle DeVan OG, Chris Hoke DL, Chauncey Davis DE, and Nate Jones DB.
A253: 5-18-12 Trade:
A254: Packers trade Packers #1 and Packers #2 to Eagles for 49ers #1 and Eagles #3.
A256: 5-18-12 Uncarded Retention:
A257: Saints retain Mario Henderson OL.
A259: 5-18-12 Saints release:
A260: David Anderson WR, Mike Wright DE, and Austin Lane DE.
A262: 5-13-12 Steelers release:
A263: Derek Anderson QB, Aaron Brown RB, Quinn Johnson RB, Robert Turner OL, Zach Miller TE, Myron Pryer DT, Bryan Kehl OLB, Anthony Madison CB, and Vincent Fuller SA.
A265: 5-13-12 49ers release:
A266: Michael Robinson RB, Anthony Adams DT, and Josh Brown PK.
A268: 5-13-12 Broncos release:
A269: Dennis Dixon QB, Eldra Buckley RB, Max Komar WR, Marlon Moore WR, Blair White WR, Stephen Spach TE, Kevin Vickerson DT, Juqua Parker DE, CJ Au You DE, Gerrard Warren DL, Garison Sanborn OLB, Mario Haggan LB, Leigh Torrance CB, CC Brown SA, and Frank Walker DB.
A271: 5-13-12 Uncarded Retention:
A272: Falcons retain Garrett Hartley PK.
A274: 5-13-12 Cardinals release:
A275: Billy Volek QB, David Buehler PK, Daniel Seplveda P, and Pat Lee DB.
A277: 5-12-12 Dolphins release:
A278: Luke McCown QB, Sammy Morris RB, Ahmard Hall RB. Michael Spurlock WR, Ben Hartsock TE, Derek Hardman OG, Mike Neal DE, Ben Leber OLB, Moise Fokou OLB, and Eric Coleman SA.
A280: 5-12-12 Redskins release:
A281: Akwasi Owusu-Ansah SA.
A283: 5-11-12 Vikings release:
A284: Taylor Price WR, T.J. Houshmandzadeh WR, Morgan Trent CB, Dylan Gandy C-G, and Tim Dobbins ILB.
A286: 5-10-12 Patriots release:
A287: Jon Kitna QB, Brian Robiske WR, and Everette Brown OLB.
A289: 5-10-12 Raiders release:
A290: Eric Moore DL.
A292: 5-10-12 Lions release:
A293: Charlie Batch QB, Chris Gronkowksi. RB, Turk McBride DE, Marvin Mitchell ILB, and Brad Jones LB.
A295: 5-10-12 Bills release:
A296: Shaun Hill QB, Seyi Ajirotutu WR, and Michael Clayton WR.
A298: 5-4-12 Titans release:
A299: Rusty Smith QB, Jordan Palmer QB, Julius Jones RB, Jalen Parmele RB, Donald Lee TE, Lydon Murtha G-T, Antwan Odom DE, Kentwan Balmer DL, Kevin Bentley
... 242 more rows

Sheet Leaders
B2: IFL SEASON LEAGUE LEADERS
B5: RUSHING
B7: Rushing Yards | C7: Team | F7: Rushing Attempts | G7: Team | J7: Rushing Average | K7: Team | N7: Rushing Long | R7: Rushing TDs | S7: Team
A8: 2009 | B8: Michael Turner | C8: New England | D8: 1666 | F8: Adrian Peterson | G8: Buffalo | H8: 367 | J8: Derrick Ward | K8: Giants | L8: 5.6 | N8: Adrian Peterson | O8: Buffalo | P8: 82 | R8: Bradon Jacobs | S8: Giants | T8: 17
A9: 2008 | B9: LaDainian Tomlinson | C9: Green Bay | D9: 1428 | F9: Thomas Jones | G9: San Diego | H9: 337 | J9: Brandon Jacobs | K9: Giants | L9: 6.1 | N9: Fred Taylor | O9: Oakland | P9: 93 | R9: Joseph Addai | S9: San Francisco | T9: 11
A10: 2007 | B10: Willie Parker | C10: Indianapolis | D10: 1824 | F10: Larry Johnson | G10: Tampa Bay | H10: 418 | J10: Michael Vick | K10: Baltimore | L10: 6.6 | N10: Chester Taylor | O10: Carolina | P10: 90 | R10: Tiki Barber | S10: Giants | T10: 17
A11: 2006 | B11: Rudi Johnson | C11: Arizona | D11: 1774 | F11: Rudi Johnson | G11: Arizona | H11: 395 | J11: Clinton Portis | K11: Minnesota | L11: 5.8 | N11: Shaun Alexander | O11: Washington | P11: 86 | R11: Tiki Barber | S11: Giants | T11: 25
A12: 2005 | B12: Curtis Martin | C12: Dallas | D12: 1903 | F12: Rudi Johnson | G12: Carolina | H12: 357 | J12: Deuce McAllister | K12: Atlanta | L12: 5.8 | N12: Jamal Lewis | O12: Indianapolis | P12: 80 | R12: Shaun Alexander | S12: Giants | T12: 18
A13: 2004 | B13: Ahman Green | C13: Giants | D13: 2109 | F13: Ricky Williams | G13: New Orleans | H13: 383 | J13: Clinton Portis | K13: Minnesota | L13: 6.9 | N13: Jamal Lewis | O13: Indianapolis | P13: 81 | R13: Ahman Green | S13: Giants | T13: 29
A14: 2003 | B14: Clinton Portis | C14: Giants | D14: 2273 | F14: Ricky Williams | G14: St. Lous | H14: 446 | J14: Michael Vick | K14: Washington | L14: 7.6 | N14: William Green | O14: San Diego | P14: 72 | R14: Priest Holmes | S14: Dallas | T14: 24
A15: 2002 | B15: Curtis Martin | C15: Jacksonville | D15: 1922 | F15: Curtis Martin | G15: Jacksonville | H15: 360 | J15: Tiki Barber | K15: New England | L15: 6.3 | N15: Dominic Rhodes | O15: Denver | P15: 77 | R15: Curtis Martin | S15: Jacksonville | T15: 31
A16: 2001 | B16: Mike Anderson | C16: Giants | D16: 1721 | F16: Jerome Bettis | G16: Indianapolis | H16: 355 | J16: Fred Taylor | K16: Green Bay | L16: 6.3 | N16: Tyrone Wheatley | O16: Jets | P16: 87 | R16: Emmitt Smith | S16: Dallas | T16: 23
B19: RECEIVING
B21: Receptions | C21: Team | F21: Receiving Yards | G21: Team | J21: Receiving Ave. | K21: Team | N21: Receiving Long | O21: Team | R21: Receiving TDs | S21: Team
A22: 2009 | B22: Wes Welker | C22: San Diego | D22: 112 | F22: Wes Welker | G22: San Diego | H22: 1532 | J22: Terrell Owens | K22: Tampa Bay | L22: 17.7 | N22: Bobby Wade | O22: Philadelphia | P22: 83 | R22: Two tied | T22: 15
A23: 2008 | B23: Terrell Owens | C23: Tampa Bay | D23: 105 | F23: Terrell Owens | G23: Tampa Bay | H23: 1602 | J23: Andre Johnson | K23: Giants | L23: 18 | N23: Roy Williams | O23: Jets | P23: 99 | R23: Antonio Gates | S23: San Francisco | T23: 26
A24: 2007 | B24: Mike Furrey | C24: Houston | D24: 104 | F24: Andre Johnson | G24: Giants | H24: 1733 | J24: Chris Henry | K24: Cincinnati | L24: 26 | N24: Marquis Colston | O24: Buffalo | P24: 87 | R24: Tony Gonzalez | S24: Atlanta | T24: 28
A25: 2006 | B25: Anquan Boldin | C25: Philadelphia | D25: 110 | F25: Anquan Boldin | G25: Philadelphia | H25: 1827 | J25: Reggie Wayne | K25: Kansas City | L25: 19.3 | N25: Brandon Stokley | O25: Pittsburgh | P25: 86 | R25: Tony Gonzalez | S25: Atlanta | T25: 35
A26: 2005 | B26: Tony Gonzalez | C26: Atlanta | D26: 112 | F26: Tony Gonzalez | G26: Atlanta | H26: 1702 | J26: Ashley Lelie | K26: Denver | L26: 20 | N26: Reggie Wayne | O26: Kansas City | P26: 76 | R26: two tied | T26: 19
A27: 2004 | B27: Anquan Boldin | C27: Philadelphia | D27: 102 | F27: Chad Johnson | G27: Baltimore | H27: 1414 | J27: Joey Galloway | K27: Dallas | L27: 18.2 | N27: Corey Bradford | O27: Jacksonville | P27: 77 | R27: Tony Gonzalez | S27: Atlanta | T27: 22
A28: 2003 | B28: Marvin Harrison | C28: Giants | D28: 130 | F28: Marvin Harrison | G28: Giants | H28: 1599 | J28: Travis Taylor | K28: Carolina | L28: 19.6 | N28: Peerless Price | O28: Oakland | P28: 74 | R28: Tony Gonzalez | S28: Atlanta | T28: 21
A29: 2002 | B29: Rod Smith | C29: Cleveland | D29: 109 | F29: Randy Moss | G29: Minnesota | H29: 1490 | J29: Willie Jackson | K29: Dallas | L29: 18.8 | N29: Quentin McCord | O29: Carolina | P29: 74 | R29: Tony Gonzalez | S29: Atlanta | T29: 18
A30: 2001 | B30: Ed McCaffrey | C30: Dallas | D30: 103 | F30: Randy Moss | G30: St. Louis | H30: 1711 | J30: J.J. Stokes | K30: Cincinnati | L30: 21.1 | N30: Dez White | O30: Minnesota | P30: 85 | R30: Ed McCaffrey | S30: Dallas | T30: 21
B33: PASSING
B36: Passer Rating | C36: Team | F36: Pass Attempts | G36: Team | J36: Passing Yards | K36: Team | N36: Passing TDs | O36: Team | R36: Interceptions | S36: Team
A37: 2009 | B37: Drew Brees | C37: Giants | D37: 111.9 | F37: Brett Favre | G37: Indianapolis | H37: 538 | J37: Phillip Rivers | K37: Minnesota | L37: 4241 | N37: Phillip Rivers | O37: Minnesota | P37: 34 | R37: Brett Favre | S37: Indianapolis | T37: 21
A38: 2008 | B38: Drew Brees | C38: Giants | D38: 116.6 | F38: Tom Brady | G38: Denver | H38: 597 | J38: Tom Brady | K38: Denver | L38: 4473 | N38: Peyon Manning | O38: San Francisco | P38: 50 | R38: Jon Kitna | S38: New Orleans | T38: 29
A39: 2007 | B39: Drew Brees | C39: Giants | D39: 118 | F39: Brett Favre | G39: Indianapolis | H39: 612 | J39: Drew Brees | K39: Giants | L39: 4939 | N39: Drew Brees | O39: Giants | P39: 50 | R39: Jon Kitna | S39: New Orleans | T39: 25
A40: 2006 | B40: Trent Green | C40: Atlanta | D40: 123.8 | F40: Eli Manning | G40: Detroit | H40: 540 | J40: Jake Delhomme | K40: San Francisco | L40: 4173 | N40: Jake Delhomme | O40: San Francisco | P40: 42 | R40: Brett Favre | S40: Indianapolis | T40: 31
A41: 2005 | B41: Drew Brees | C41: Tampa Bay | D41: 111.2 | F41: Daunte Culpepper | G41: Kansas City | H41: 546 | J41: Daunte Culpepper | K41: Kansas City | L41: 4626 | N41: Peyton Manning | O41: Dallas | P41: 42 | R41: two tied | T41: 24
A42: 2004 | B42: Jake Plummer | C42: Giants | D42: 122.5 | F42: Donovan McNabb | G42: New England | H42: 510 | J42: Peyton Manning | K42: Dallas | L42: 3869 | N42: Trent Green | O42: Atlanta | P42: 32 | R42: two tied | T42: 21
A43: 2003 | B43: Rich Gannon | C43: Cleveland | D43: 109.1 | F43: Tim Couch | G43: San Francisco | H43: 531 | J43: Trent Green | K43: Baltimore | L43: 3670 | N43: Kerry Collins | O43: Detroit | P43: 31 | R43: two tied | T43: 22
A44: 2002 | B44: Tony Banks | C44: Atlanta | D44: 101.9 | F44: Donovan McNabb | G44: New England | H44: 532 | J44: Peyton Manning | K44: Dallas | L44: 4033 | N44: Kurt Warner | O44: Tampa Bay | P44: 36 | R44: Tim Couch | S44: San Francisco | T44: 29
A45: 2001 | B45: Rich Gannon | C45: Buffalo | D45: 107.6 | F45: Donovan McNabb | G45: New England | H45: 534 | J45: Vinny Testaverde | K45: St. Louis | L45: 4207 | N45: two tied | P45: 36 | R45: two tied | T45: 23
B48: PASS DEFENSE
B50: Interceptions | C50: Team | F50: Interception Yards | G50: Team | J50: Long Interceptions | K50: Team | N50: Interception TD | O50: Team | R50: Deflections | S50: Team
A51: 2009 | B51: Three tied | D51: 6 | F51: Nick Collins | G51: Minnesota | H51: 300 | J51: Kelvin Hayden | K51: Carolina | L51: 98 | N51: Nick Collins | O51: Minnesota | P51: 3 | R51: Antonio Cromartie | S51: San Diego | T51: 11
A52: 2008 | B52: Antonio Cromartie | C52: San Diego | D52: 8 | F52: Gary Brackett | G52: Tampa Bay | H52: 214 | J52: Gary Brackett | K52: Tampa Bay | L52: 109 | N52: several tied | P52: 2 | R52: Kirk Morrison | S52: Miami | T52: 14
A53: 2007 | B53: Walt Harris | C53: New England | D53: 10 | F53: Champ Bailey | G53: Oakland | H53: 178 | J53: Mathias Kinwanuka | K53: Dallas | L53: 88 | N53: three tied | P53: 3 | R53: Patrick Surtain | S53: Dallas | T53: 14
A54: 2006 | B54: Ty Law | C54: Giants | D54: 8 | F54: Ty Law | G54: Giants | H54: 280 | J54: Darren Sharper | K54: San Diego | L54: 90 | N54: Ty Law | O54: Giants | P54: 3 | R54: three tied | T54: 13
A55: 2005 | B55: Ed Reed | C55: Miami | D55: 10 | F55: Ed Reed | G55: Miami | H55: 453 | J55: two tied | L55: 98 | N55: Darren Sharper | O55: Chargers | P55: 3 | R55: Brian Dawkins | S55: Washington | T55: 17
A56: 2004 | B56: Tony Parrish | C56: Giants | D56: 9 | F56: Travis Fisher | G56: Jacksonville | H56: 203 | J56: Mike Minter | K56: Minnesota | L56: 104 | N56: Travis Fisher | O56: Jacksonville | P56: 3 | R56: Ty Law | S56: Dallas | T56: 17
A57: 2003 | B57: Rod Woodson | C57: Jacksonville | D57: 10 | F57: Rod Woodson | G57: Jacksonville | H57: 258 | J57: Keion Carpenter | K57: Atlanta | L57: 97 | N57: Rod Woodson | O57: Jacksonville | P57: 4 | R57: Mike Brown | S57: Dallas | T57: 18
A58: 2002 | B58: Deltha O'Neal | C58: Jets | D58: 10 | F58: Brock Marion | G58: Jets | H58: 200 | J58: Ronde Barber | K58: Giants | L58: 89 | N58: Brock Marion | O58: Jets | P58: 3 | R58: Nate Clements | S58: San Francisco | T58: 20
A59: 2001 | B59: Darren Sharper | C59: Jacksonville | D59: 9 | F59: Eric Allen | G59: Buffalo | H59: 269 | J59: Ashley Ambrose | K59: San Diego | L59: 84 | N59: Eric Allen | O59: Buffalo | P59: 4 | R59: Samari Rolle | S59: Miami | T59: 20
B62: SACKS
B65: Sacks | C65: Team | F65: Sack Yards | G65: Team | J65: Hurries | K65: Team | N65: Safties | O65: Team
A66: 2009 | B66: John Abraham | C66: Minnesota | D66: 18 | F66: John Abraham | G66: Minnesota | H66: 120 | J66: Darren Howard | K66: San Francisco | L66: 40 | N66: Shaun Rogers | O66: Patriots | P66: 2
A67: 2008 | B67: Shawn Merriman | C67: New England | D67: 20 | F67: Shawn Merriman | G67: New England | H67: 127 | J67: Jared Allen | K67: Jacksonville | L67: 29 | N67: several tied | P67: 1
A68: 2007 | B68: Derrick Burgess | C68: Indianapolis | D68: 24 | F68: Derrick Burgess | G68: Indianapolis | H68: 160 | J68: Julius Peppers | K68: Philadelphia | L68: 39 | N68: Kevin Carter | O68: Giants | P68: 2
A69: 2006 | B69: two tied | D69: 18 | F69: Derrick Burgess | G69: Indianapolis | H69: 135 | J69: Jared Allen | K69: Jacksonville | L69: 26 | N69: several | P69: 1
A70: 2005 | B70: Terrell Suggs | C70: Buffalo | D70: 21 | F70: Shaun Ellis | G70: Houston | H70: 136 | J70: Shaun Ellis | K70: Houston | L70: 22 | N70: Adalius Thomas | O70: Washington | P70: 2
A71: 2004 | B71: three tied | D71: 18 | F71: Simeon Rice | G71: San Francisco | H71: 127 | J71: two tied | L71: 21 | N71: several | P71: 1
A72: 2003 | B72: Mike Rucker | C72: Denver | D72: 14 | F72: Mike Rucker | G72: Denver | H72: 116 | J72: Patrick Kerney | K72: Baltimore | L72: 29 | N72: several | P72: 1
A73: 2002 | B73: Peter Boulware | C73: Green Bay | D73: 16 | F73: two tied | H73: 107 | J73: Marcellus Wiley | K73: Cleveland | L73: 36 | N73: several | P73: 1
A74: 2001 | B74: Joey Porter | C74: Green Bay | D74: 34 | F74: Joey Porter | G74: Green Bay | H74: 193 | J74: two tied | L74: 39 | N74: Jason Gildon | O74: Indianapolis | P74: 3
B78: TACKLES
B81: Tackles | C81: Team | F81: Stuffs | G81: Team | J81: Stuff Yards | K81: Team | N81: Tackles/Game | O81: Team | R81: Forced Fumbles | S81: Team
A82: 2009 | B82: Clint Session | C82: Pittsburgh | D82: 163 | F82: two tied | H82: 24 | J82: Clint Session | K82: Pittsburgh | L82: 48 | N82: Gary Brackett | O82: Tampa Bay | P82: 12.1 | R82: James Harrison | S82: Miami | T82: 9
A83: 2008 | B83: Gerald Hayes | C83: Tennessee | D83: 205 | F83: Ernie Sims | G83: Dallas | H83: 29 | J83: Trent Cole | K83: Arizona | L83: 51 | N83: Gerald Hayes | O83: Tennessee | P83: 12.8 | R83: James Harrison | S83: Miami | T83: 15
A84: 2007 | B84: James Farrior | C84: Arizona | D84: 176 | F84: Lance Briggs | G84: New England | H84: 28 | J84: Lance Briggs | K84: New England | L84: 58 | N84: James Farrior | O84: Arizona | P84: 11 | R84: Jason Taylor | S84: Giants | T84: 17
A85: 2006 | B85: Jonathan Vilma | C85: Carolina | D85: 193 | F85: Larry Foote | G85: Cincinnati | H85: 29 | J85: Keith Adams | K85: New Orleans | L85: 54 | N85: Jonathan Vilma | O85: Carolina | P85: 12.1 | R85: Jared Allen | S85: Jacksonville | T85: 13
A86: 2005 | B86: Teddy Lehman | C86: Green Bay | D86: 188 | F86: Teddy Lehman | G86: Green Bay | H86: 30 | J86: D.J. Williams | K86: Oakland | L86: 66 | N86: Teddy Lehman | O86: Green Bay | P86: 11.8 | R86: Greg Spires | S86: St. Louis | T86: 16
A87: 2004 | B87: Andra Davis | C87: Detroit | D87: 181 | F87: La'Roi Glover | G87: San Francisco | H87: 14 | J87: two tied | L87: 28 | N87: two tied | P87: 11.3 | R87: Terrell Suggs | S87: Buffalo | T87: 13
A88: 2003 | B88: Ted Johnson | C88: Philadelphia | D88: 160 | F88: Jay Foreman | G88: New Orleans | H88: 24 | J88: two tied | L88: 50 | N88: Ted Johnson | O88: Philadelphia | P88: 10 | R88: Dwight Freeney | S88: Detroit | T88: 13
A89: 2002 | B89: Kendrell Bell | C89: Arizona | D89: 164 | F89: Kendrell Bell | G89: Arizona | H89: 32 | J89: Kendrell Bell | K89: Arizona | L89: 61 | N89: Kendrell Bell | O89: Arizona | P89: 10.3 | R89: John Abraham | S89: Minnesota | T89: 10
A90: 2001 | B90: Micheal Barrow | C90: Minnesota | D90: 168 | F90: Ken Norton | G90: Arizona | H90: 34 | J90: Micheal Barrow | K90: Minnesota | L90: 69 | N90: Micheal Barrow | O90: Minnesota | P90: 10.5 | R90: Joey Porter | S90: Green Bay | T90: 13
B94: KICK RETURNS
B97: Kick Return Ave | C97: Team | F97: Kick Returns | G97: Team | J97: Kick Return Yards | K97: Team | N97: Kick Return Long | O97: Team | R97: Kick Return TDs | S97: Team
A98: 2009 | B98: Leodis McKelvin | C98: Denver | D98: 30.2 | F98: Rock Cartwright | G98: Pittsburgh | H98: 87 | J98: Leodis McKelvin | K98: Denver | L98: 1995 | N98: Felix Jones | O98: Indianapolis | P98: 99 | R98: Five tied | T98: 1
A99: 2008 | B99: Andre Davis | C99: Giants | D99: 33 | F99: Benny Sapp | G99: Tennessee | H99: 94 | J99: Joshua Cribbs | K99: Minnesota | L99: 1858 | N99: Jerome Mathis | O99: Oakland | P99: 105 | R99: Andre Davis | S99: Giants | T99: 3
A100: 2007 | B100: Michael Lewis | C100: Cincinnati | D100: 27.8 | F100: Dexter Wynn | G100: Green Bay | H100: 81 | J100: J.J. Arrington | K100: Washington | L100: 1667 | N100: Maurice Jone-Drew | O100: Miami | P100: 99 | R100: Maurice Jone-Drew | S100: Miami | T100: 1
A101: 2006 | B101: Terrence McGee | C101: Giants | D101: 29.5 | F101: Tyson Thompson | G101: Kansas City | H101: 82 | J101: Tyson Thompson | K101: Kansas City | L101: 1694 | N101: Ladell Betts | O101: Green Bay | P101: 96 | R101: Five tied | T101: 1
A102: 2005 | B102: Willie Ponder | C102: Chicago | D102: 25.1 | F102: Jamal Robertson | G102: Cincinnati | H102: 75 | J102: Tim Dwight | K102: Carolina | L102: 1488 | N102: Tim Dwight | O102: Carolina | P102: 100 | R102: two tied | T102: 2
A103: 2004 | B103: Jonathan Carter | C103: Giants | D103: 32.1 | F103: Dante Hall | G103: San Francisco | H103: 69 | J103: Dante Hall | K103: San Francisco | L103: 1755 | N103: Dante Hall | O103: San Francisco | P103: 99 | R103: two tied | T103: 2
A104: 2003 | B104: Marcus Knight | C104: Houston | D104: 32.2 | F104: Allen Rossum | G104: Chicago | H104: 74 | J104: Kevin Kasper | K104: San Diego | L104: 1729 | N104: two tied | P104: 100 | R104: three tied | T104: 2
A105: 2002 | B105: Brian Mitchell | C105: Miami | D105: 25.9 | F105: Frank Murphy | G105: Baltimore | H105: 70 | J105: Desmond Howard | K105: Arizona | L105: 1529 | N105: two tied | P105: 100 | R105: Steve Smith | S105: Tennessee | T105: 2
A106: 2001 | B106: Fred McAfee | C106: Oakland | D106: 27 | F106: Ron Dixon | G106: Minnesota | H106: 90 | J106: MarTay Jenkins | K106: Arizona | L106: 1906 | N106: Michael Bates | O106: Green Bay | P106: 105 | R106: Kevin Williams | S106: Tampa Bay | T106: 3
B110: PUNT RETURNS
B113: Punt Return Ave | C113: Team | F113: Punt Returns | G113: Team | J113: Fair Catches | K113: Team | N113: Punt Retun Yards | O113: Team | R113: Punt Return Long | S113: Team | V113: Punt Return TDs | W113: Team
A114: 2009 | B114: Reggie Bush | C114: Green Bay | D114: 19.2 | F114: Mark Jones | G114: Detroit | H114: 40 | J114: Chris Carr | K114: Jacksonville | L114: 26 | N114: Reggie Bush | O114: Green Bay | P114: 634 | R114: Reggie Bush | S114: Green Bay | T114: 87 | V114: Reggie Bush | W114: Green Bay | X114: 5
A115: 2008 | B115: Devin Hester | C115: Philadelphia | D115: 20 | F115: Roscoe Parrish | G115: San Francisco | H115: 61 | J115: Steve Breaston | K115: Miami | L115: 38 | N115: Roscoe Parrish | O115: San Francisco | P115: 587 | R115: Dante Hall | S115: Oakland | T115: 96 | V115: Devin Hester | W115: Philadelphia | X115: 5
A116: 2007 | B116: Pacman Jones | C116: Oakland | D116: 14.8 | F116: Roscoe Parrish | G116: Indianapolis | H116: 62 | J116: Troy Walters | K116: St. Louis | L116: 26 | N116: Roscoe Parrish | O116: Indianapolis | P116: 694 | R116: Devin Hester | S116: Philadelphia | T116: 87 | V116: Pacman Jones | W116: Oakland | X116: 2
A117: 2006 | B117: Chad Morton | C117: Miami | D117: 12.5 | F117: Antonio Chatman | G117: Tampa Bay | H117: 43 | J117: Terry Fair | K117: Detroit | L117: 28 | N117: Pacman Jones | O117: Oakland | P117: 404 | R117: Chad Morton | S117: Miami | T117: 87 | V117: Pacman Jones | W117: Oakland | X117: 2
A118: 2005 | B118: Allen Rossum | C118: Atlanta | D118: 17.9 | F118: Alvis Whitted | G118: Cincinnati | H118: 53 | J118: Antonio Chatman | K118: Giants | L118: 39 | N118: Nate Clements | O118: St. Louis | P118: 541 | R118: Allen Rossum | S118: Atlanta | T118: 87 | V118: Nate Burleson | W118: Oakland | X118: 2
A119: 2004 | B119: Dante Hall | C119: San Francisco | D119: 21.8 | F119: J.J. Moses | G119: Denver | H119: 51 | J119: Antonio Chatman | K119: Giants | L119: 25 | N119: Dante Hall | O119: San Francisco | P119: 523 | R119: two tied | T119: 81 | V119: Dante Hall | W119: San Francisco | X119: 3
A120: 2003 | B120: Michael Lewis | C120: Cleveland | D120: 15.7 | F120: Santana Moss | G120: Washington | H120: 47 | J120: two tied | L120: 22 | N120: Santana Moss | O120: Washington | P120: 695 | R120: Dante Hall | S120: St. Louis | T120: 83 | V120: Santana Moss | W120: Washington | X120: 3
A121: 2002 | B121: Tim Dwight | C121: Cincinnati | D121: 17.8 | F121: Arnold Jackson | G121: Giants | H121: 46 | J121: Vinny Sutherland | K121: Chicago | L121: 26 | N121: Tim Dwight | O121: Cincinnati | P121: 516 | R121: Eric Metcalf | S121: Atlanta | T121: 93 | V121: three tied | X121: 2
A122: 2001 | B122: Peter Warrick | C122: Cleveland | D122: 20.4 | F122: three tied | H122: 44 | J122: Allen Rossum | K122: Dallas | L122: 26 | N122: Jermaine Lewis | O122: Jacksonville | P122: 881 | R122: Peter Warrick | S122: Cleveland | T122: 94 | V122: Jermaine Lewis | W122: Jacksonville | X122: 4
B126: KICKING
B129: Points Scored | C129: Team | F129: Field Goal Attempts | G129: Team | J129: Field Goals Made | K129: Team | N129: Field Goal Pct. | O129: Team | R129: Field Goal Long | S129: Team | V129: Touchbacks | W129: Team
A130: 2009 | B130: Dan Carpenter | C130: Giants | D130: 133 | F130: Mark Bryant | G130: Baltimore | H130: 38 | J130: Rob Bironas | K130: New Orleans | L130: 31 | N130: John Kasey | O130: Houston | P130: 100 | R130: Matt Prater | S130: Miami | T130: 63 | V130: Josh Brown | W130: San Francisco | X130: 26
A131: 2008 | B131: Josh Brown | C131: San Francisco | D131: 130 | F131: Nick Folk | G131: Philadelphia | H131: 44 | J131: Mark Bryant | K131: Baltimore | L131: 33 | N131: Jason Elam | O131: New England | P131: 96.2 | R131: Kris Brown | S131: Arizona | T131: 58
A132: 2007 | B132: Jeff Wilkins | C132: Tampa Bay | D132: 146 | F132: John Kasey | G132: Houston | H132: 40 | J132: Jeff Wilkins | K132: Tampa Bay | L132: 35 | N132: Matt Stover | O132: Jacksonville | P132: 100 | R132: John Kasey | S132: Houston | T132: 58 | V132: Not
A133: 2006 | B133: Josh Scobee | C133: Oakland | D133: 136 | F133: Josh Scobee | G133: Oakland | H133: 40 | J133: Josh Scobee | K133: Oakland | L133: 36 | N133: Mike Vanderjagt | O133: Giants | P133: 94.4 | R133: Rob Bironas | S133: Houston | T133: 57 | V133: recorded
A134: 2005 | B134: John Carney | C134: St. Louis | D134: 165 | F134: John Carney | G134: St. Louis | H134: 49 | J134: John Carney | K134: St. Louis | L134: 42 | N134: Adam Vinatieri | O134: Detroit | P134: 96.3 | R134: five tied | T134: 54 | V134: before
A135: 2004 | B135: Gary Anderson | C135: Baltimore | D135: 163 | F135: Gary Anderson | G135: Baltimore | H135: 42 | J135: Gary Anderson | K135: Baltimore | L135: 39 | N135: Mike Vanderjagt | O135: Giants | P135: 96.7 | R135: Sebastian Janikowski | S135: Washington | T135: 59 | V135: 2009
A136: 2003 | B136: Phil Dawson | C136: Dallas | D136: 130 | F136: two tied | H136: 39 | J136: Kris Brown | K136: Arizona | L136: 32 | N136: Jason Hanson | O136: Minnesota | P136: 92.3 | R136: Ryan Longwell | S136: Buffalo | T136: 55
A137: 2002 | B137: two tied | D137: 160 | F137: Jeff Wilkins | G137: Tampa Bay | H137: 39 | J137: two tied | L137: 33 | N137: Olindo Mare | O137: Jets | P137: 100 | R137: three tied | T137: 54
A138: 2001 | B138: Matt Stover | C138: Jacksonville | D138: 170 | F138: Matt Stover | G138: Jacksonville | H138: 50 | J138: Matt Stover | K138: Jacksonville | L138: 42 | N138: Ryan Lindell | O138: Dallas | P138: 100 | R138: three tied | T138: 55
B142: PUNTING
B145: Punting Ave. | C145: Team | F145: Punts | G145: Team | J145: Punt Yardage | K145: Team | N145: Punts Inside 20 | O145: Team | R145: Touchbacks | S145: Team | V145: Long Punt | W145: Team | Z145: Punts Blocked | AA145: Team
A146: 2009 | B146: Donnie Jones | C146: San Francisco | D146: 49.4 | F146: two tied | H146: 85 | J146: Andy Lee | K146: Oakland | L146: 3980 | N146: Dave Zastudil | O146: Cincinnati | P146: 24 | R146: Dustin Colquitt | S146: Miami | T146: 23 | V146: Shane Lechler | W146: Denver | X146: 83 | Z146: Jason Baker | AA146: Tampa Bay | AB146: 5
A147: 2008 | B147: Shane Lechler | C147: Denver | D147: 48.5 | F147: two tied | H147: 104 | J147: Bo Scifres | K147: Tennessee | L147: 4971 | N147: Brad Maynard | O147: New England | P147: 40 | R147: Mat McBriar | S147: Jacksonville | T147: 19 | V147: Dustin Colquitt | W147: Miami | X147: 87 | Z147: Todd Sauerbrun | AA147: Houston | AB147: 5
A148: 2007 | B148: Scott Player | C148: Kansas City | D148: 46.2 | F148: Brad Maynard | G148: New England | H148: 105 | J148: Brad Maynard | K148: New England | L148: 4618 | N148: Dustin Colquitt | O148: Miami | P148: 38 | R148: Brian Moorman | S148: St. Louis | T148: 16 | V148: Jason Baker | W148: Tampa Bay | X148: 86 | Z148: Jason Baker | AA148: Tampa Bay | AB148: 3
A149: 2006 | B149: Hunter Smith | C149: Pittsburgh | D149: 44.9 | F149: B.J. Sander | G149: Chicago | H149: 104 | J149: B.J. Sander | K149: Chicago | L149: 4288 | N149: Brian Moorman | O149: St. Louis | P149: 33 | R149: Mat McBriar | S149: Jacksonville | T149: 12 | V149: Todd Sauerbrun | W149: San Francisco | X149: 73 | Z149: Chris Hanson | AA149: Oakland | AB149: 2
A150: 2005 | B150: Shane Lechler | C150: Denver | D150: 45.9 | F150: Chris Gardocki | G150: Carolina | H150: 104 | J150: Chris Gardocki | K150: Carolina | L150: 4465 | N150: Mitch Berger | O150: San Diego | P150: 27 | R150: Hunter Smith | S150: Baltimore | T150: 15 | V150: Shane Lechler | W150: Denver | X150: 66 | Z150: Micah Knorr | AA150: Chicago | AB150: 3
A151: 2004 | B151: Shane Lechler | C151: Denver | D151: 47.3 | F151: Chad Stanley | G151: Philadelphia | H151: 95 | J151: Brian Moorman | K151: St. Louis | L151: 4158 | N151: Mitch Berger | O151: San Diego | P151: 25 | R151: two tied | T151: 13 | V151: Dave Zastudil | W151: Houston | X151: 73 | Z151: Todd Sauerbrun | AA151: New Orleans | AB151: 3
A152: 2003 | B152: Todd Sauerbrun | C152: Carolina | D152: 45.5 | F152: Mitch Berger | G152: San Diego | H152: 87 | J152: Chris Hanson | K152: Oakland | L152: 3577 | N152: Shane Lechler | O152: Denver | P152: 22 | R152: Scott Player | S152: Kansas City | T152: 15 | V152: Chris Hanson | W152: Oakland | X152: 81 | Z152: Dave Zastudil | AA152: Houston | AB152: 4
A153: 2002 | B153: Todd Sauerbrun | C153: Carolina | D153: 48.4 | F153: Chris Gardocki | G153: New Orleans | H153: 95 | J153: Chris Gardocki | K153: New Orleans | L153: 4023 | N153: Shane Lechler | O153: Denver | P153: 47 | R153: Chris Gardocki | S153: New Orleans | T153: 12 | V153: Craig Hentrich | W153: Cincinnati | X153: 71 | Z153: Micah Knorr | AA153: Chicago | AB153: 4
A154: 2001 | B154: Darren Bennett | C154: Arizona | D154: 47.3 | F154: Hunter Smith | G154: Baltimore | H154: 95 | J154: Hunter Smith | K154: Baltimore | L154: 4231 | N154: Sean Landeta | O154: Jets | P154: 44 | R154: Scott Player | S154: Seattle | T154: 13 | V154: Royals | W154: Buffalo | X154: 78 | Z154: Jeff Feagles | AA154: Giants | AB154: 4
B158: IFL SINGLE GAME RECORDS
B161: RUSHING
B163: Rushing Attempts | C163: Team | F163: Opponent | G163: Date
B164: Kevin Smith | C164: Baltimore | D164: 51 | G164: 2009-12-09
B167: Rushing Yards | C167: Team | F167: Opponent | G167: Date
B168: Curtis Martin | C168: Jacksonville | D168: 289 | F168: Green Bay | G168: 2002-08-25
B171: Rushing Touchdowns | C171: Team | F171: Opponent | G171: Date
B172: Shaun Alexander | C172: Washington | D172: 6 | G172: 2006-10-24
B173: Curtis Martin | C173: Jacksonville | D173: 6 | F173: Green Bay | G173: 2002-08-25
B176: Rushing Firstdowns | C176: Team | F176: Opponent | G176: Date
B177: LaDainian Tomlinson | C177: Green Bay | D177: 16 | G177: 2003-10-28
B178: Emmitt Smith | C178: Tampa Bay | D178: 16 | F178: Arizona | G178: 2002-12-13
B180: Rushing Long | C180: Team | F180: Opponent | G180: Date
B181: Adrian Peterson | C181: Buffalo | D181: 93 | G181: 2010-09-27
B182: Fred Taylor | C182: Oakland | D182: 93 | G182: 2008-09-10
B185: Rushing 10+ | C185: Team | F185: Opponent | G185: Date
B186: Emmitt Smith | C186: Tampa Bay | D186: 12 | F186: Arizona | G186: 2002-12-13
B189: Fumbles | C189: Team | F189: Opponent | G189: Date
B190: Jamie Martin | C190: St. Louis | D190: 7 | G190: 2007-12-19
B194: RECEIVING
B196: Receptions | C196: Team | F196: Opponent | G196: Date
B197: David Boston | C197: Miami | D197: 18 | G197: 2004-12-14
B200: Yards | C200: Team | F200: Opponent | G200: Date
B201: Reggie Wayne | C201: Kansas City | D201: 373 | F201: Giants | G201: 2006-10-31
B204: Long | C204: Team | F204: Opponent | G204: Date
B205: Roy Williams | C205: Jets | D205: 99 | G205: 2008-10-15
B208: Touchdowns | C208: Team | F208: Opponent | G208: Date
B209: Tony Gonzalez | C209: Atlanta | D209: 5 | G209: 2006-10-10
B210: Tony Gonzalez | C210: Atlanta | D210: 5 | G210: 2005-12-10
B211: Hines Ward | C211: Indianapolis | D211: 5 | G211: 2004-11-28
B213: Receiving 25+ | C213: Team | F213: Opponent | G213: Date
B214: Anquan Boldin | C214: Philadelphia | D214: 5 | G214: 2006-11-21
B215: Laveranues Coles | C215: St. Louis | D215: 5 | G215: 2004-12-20
B216: Travis Taylor | C216: Carolina | D216: 5 | G216: 2003-10-28
B217: Rod Smith | C217: San Francisco | D217: 5 | G217: 2001-12-18
B218: Willie Jackson | C218: Dallas | D218: 5 | G218: 2002-11-21
B220: Firstdowns | C220: Team | F220: Opponent | G220: Date
B221: David Boston | C221: Miami | D221: 16 | G221: 2004-12-14
B224: Receiving RAC | C224: Team | F224: Opponent | G224: Date
B225: Reggie Wayne | C225: Kansas City | D225: 265 | G225: 2006-10-31
B228: Targets | C228: Team | F228: Opponent | G228: Date
B229: David Boston | C229: Miami | D229: 29 | G229: 2004-12-14
B232: Drops | C232: Team | F232: Opponent | G232: Date
B233: MarTay Jenkins | C233: Houston | D233: 5 | G233: 2003-12-09
B234: Shaun Alexander | C234: Oakland | D234: 5 | G234: 2001-08-23
B237: PASSING
B239: Attempts | C239: Team | F239: Opponent | G239: Date
B240: Ben Roethlisberger | C240: Arizona | D240: 63 | G240: 2007-11-21
B243: Completions | C243: Team | F243: Opponent | G243: Date
B244: Matt Schaub | C244: Washington | D244: 40 | G244: 2008-12-15
B245: Chad Pennington | C245: Pittsburgh | D245: 40 | G245: 2007-12-11
B248: Yards | C248: Team | F248: Opponent | G248: Date
B249: Drew Brees | C249: Giants | D249: 572 | G249: 2006-10-31
B252: Interceptions | C252: Team | F252: Opponent | G252: Date
B253: John Navarre | C253: Baltimore | D253: 6 | G253: 2005-12-28
B254: Chris Redman | C254: Cleveland | D254: 6 | G254: 2001-12-18
B257: Long Completion | C257: Team | F257: Opponent | G257: Date
B258: Matt Hasselbeck | C258: Jets | D258: 99 | G258: 2008-10-15
B261: Touchdowns | C261: Team | F261: Opponent | G261: Date
B262: Chris Redman | C262: Tennessee | D262: 7 | G262: 2010-09-27
B263: Tom Brady | C263: Denver | D263: 7 | G263: 2008-12-01
B264: Chad Pennington | C264: Minnesota | D264: 7 | G264: 2005-11-28
B265: Peyton Manning | C265: Dallas | D265: 7 | G265: 2001-12-04
B268: Times Sacked | C268: Team | F268: Opponent | G268: Date
B269: Quincy Carter | C269: Chicago | D269: 13 | G269: 2005-09-26
B273: DEFENSE
B275: Interceptions | C275: Team | F275: Opponent | G275: Date
B276: Dawan Landry | C276: Miami | D276: 5 | G276: 2007-10-30
B279: Interception Return Yards | C279: Team | F279: Opponent | G279: Date
B280: Dawan Landry | C280: Miami | D280: 175 | G280: 2007-10-30
B283: Interception Long | C283: Team | F283: Opponent | G283: Date
B284: Mike Minter | C284: Minnesota | D284: 104 | G284: 2004-09-05
B287: Interception Touchdowns | C287: Team | F287: Opponent | G287: Date
B288: Dawan Landry | C288: Cincinnati | D288: 3 | G288: 2010-09-25
B289: Dawan Landry | C289: Miami | D289: 3 | G289: 2007-10-30
B292: Deflections | C292: Team | F292: Opponent | G292: Date
B293: Reggie Howard | C293: New Orleans | D293: 5 | G293: 2003-08-31
B294: Nate Clements | C294: San Francisco | D294: 5 | G294: 2002-12-05
B297: Tackles | C297: Team | F297: Opponent | G297: Date
B298: Larry Foote | C298: Green Bay | D298: 21 | G298: 2010-09-30
B299: Jon Beason | C299: New England | D299: 21 | G299: 2008-09-24
B300: Teddy Lehman | C300: Green Bay | D300: 21 | G300: 2005-12-22
B301: Bernardo Harris | C301: Denver | D301: 21 | G301: 2001-12-18
B304: Stuffs | C304: Team | F304: Opponent | G304: Date
B305: Teddy Lehman | C305: Green Bay | D305: 7 | G305: 2005-12-11
B306: Micheal Barrow | C306: Minnesota | D306: 7 | G306: 2001-08-27
B308: Stuff Yards | C308: Team | F308: Opponent | G308: Date
B309: Gregory Favors | C309: Buffalo | D309: 22 | G309: 2002-08-23
B312: Sacks | C312: Team | F312: Opponent | G312: Date
... 63 more rows
